{"text_format":"1","workbook":"xlsx","n_sheets":15,"sheets":["ReadMe","MECH-SUM","MECH-CHK","MECH-ECONO","MECH-FANSYS-SUM","MECH-FANSYS","MECH-FANSYS-DOC","MECH-LOAD-CALC","MECH-EQ","MECH-EQ BOILER-CHILLER","MECH-EQ HEAT REJECTION","MECH-EQ AIR SYSTEM TERMINALS","MECH-EQ narrow","MECH-EQ AIR SYSTEM TERM old","ALT-MECH-SYS-SUM"],"not_rendered":{"charts":0,"images":0,"macros":1,"external_links":0,"defined_names":217,"comments":3,"pivot_tables":0},"unopened":[],"bounds":{"document_bytes":16777216,"sheet_cells":100000,"rows_first":2000,"rows_last":500,"rows_between":2000,"halvings":0,"cell_chars":16384,"cell_head_chars":4096},"cells_cut":0,"cells_raw":0,"read":"whole","date_system":"1900"}

{"sheet":"ReadMe","index":0,"n_rows":34,"n_cols":2,"rows_kept":34,"cut":false,"hidden":false,"merged":[[31,0,32,0],[0,0,0,1],[1,0,1,1],[9,0,10,0],[13,0,19,0],[21,0,23,0],[24,0,26,0],[24,1,26,1],[27,0,30,0]]}
["Instructions for Electronic Forms"]
["2012 Washington State Energy Code Compliance Forms for Commercial Buildings including R2 & R3 over 3 stories and all R1 "]
[null,"Revised May 2015"]
[null,"     Commercial Provision Chapters 1 - 5 of the 2012 Washington State Energy Code apply to all commercial occupancies, R-2 and R-3 occupanies greater than 3 stories above grade, and R-1 occupancy (all building heights)."]
["Intro","     This file, MECH12-v4.XLSM, has electronic compliance forms for mechanical provisions as defined in Sections C101, C403, C404, and C408. There are two companion files: ENV12-v3.XLSM (Sections C101, C303, C402 and Appendix A envelope requirements), LTG12-v3.XLSM (Section C405 lighting systems requirements). "]
["Energy Code","    This form is a compliance aid and is not a substitute for the full energy code text or specific jurisdiction compliance requirements. Users should refer to the code text and contact the local jurisdiction for complete information. The full 2012 WSEC code text is available for download from the NEEC website:"]
[null,"http:/www.neec.net/energy-codes"]
["Training ","Refer to the NEEC website for instruction on how to complete all of the 2012 WSEC Compliance Forms."]
["Start-up","Select this file from the NEEC website to download to your computer.  When opening the file be sure to Enable Macros. "]
["Overview","     This file is an Excel workbook that contains multiple compliance forms and resources in Excel worksheets. Each worksheet is indicated by a tab at the bottom of the screen. You may visit each worksheet by selecting it's tab.  "]
[null,"     Most calculations are automated. Cells that display informational text and the results of calculations are write-protected and cannot be edited. "]
["Save Files","This file is saved in the same manner as any standard Excel file.   "]
["Getting Around","     Some forms have two pages. Both pages are available on screen when you select the tab for a form (worksheet). Use the scroll bars to find the second page located below the first page."]
["Input Cells","     All general project information and the date are entered once on MECH-SUM. This information is automatically replicated on all other MECH forms. "]
[null,"     Only input cells are accessible. If you try to edit a write-protected cell an error message will appear requesting a password.  A password IS NOT required to complete these forms. You may use the TAB key to move to the next input cell. If the TAB doesn't take you where you want to go, use your mouse to move around the form. "]
[null,"     Avoid excessively long text strings when entering information. In some cases, text that extends beyond the available space will not be visible. In most cases the text will wrap within the cell. This may force part of the form onto a new page."]
[null,"     To enter the date, use this format: mm/dd/yyyy.  For example, you would enter 7/1/2013 or 12/21/2014."]
[null,"     Check boxes can be checked or unchecked by clicking in the box with your mouse. Radio buttons (circles) allow only one in a set to be selected."]
[null,"     Drop-down lists have an arrow at the right side of the cell. Click on the arrow with your mouse and select the appropriate option. Use the delete button on your computer to clear a drop-down entry."]
[null,"     When a form has a space for notes or explanation, click anywhere in the space to edit. "]
["Personal-izing","     You can personalize the forms with your company name, address, phone, or any other information. This is done by editing the header or footer in Excel."]
["Adding and Removing Lines","     Many tables, such as for listing proposed mechanical systems, have a certain number of lines available for entering data. You may need more lines to enter all your information. Where this feature is available, you can add additional lines to the table by selecting the \"+\" button on the right hand side of the table with your mouse. If you can't see the \"+\" button, scroll to the right or decrease the View Zoom setting for the worksheet. "]
[null,"     To remove lines that you have added, select the \"-\" button with your mouse. This will delete the last line of the section.  You cannot remove lines that were not added; an error message will appear if you try."]
[null,"     If you add additional lines with this method, the pagination may be affected forcing the forms to carry additional lines over to other pages.  Be sure to submit all pages to the plans examiner."]
["Adding MECH-FANSYS Forms","    A completed MECH-FANSYS form is required for each applicable fan system. One copy of this form is included in the workbook. If additional MECH-FANSYS forms are needed, select the \"Insert Fan System Form\" button in MECH-FANSYS-SUM or MECH-FANSYS. An added form may be deleted by selecting the \"Delete This Fan System\" button within the added MECH-FANSYS form."]
[]
[]
["Printing","     All forms are set-up to be printed in letter format, with the exception of the MECH-EQ Cooling & Heating Equipment Schedule Form. This MECH-EQ form may be printed in either landscape or letter format, however the font is larger and easier to read  when printed in landscape."]
[null,"     If you are losing form details when printing, you may have a shortage of printer memory.  Try printing problem pages individually."]
[null,"     Only selected forms are printed. To select one or more forms, hold down the Ctrl key and click the tabs of the worksheets you need. Issue the File Print Selected Sheets command. To print the entire set, use File Print Entire Workbook."]
[null,"     Forms (worksheets) in a workbook may not be deleted because the file is locked."]
["Clean Forms","    To print blank forms to fill out by hand, delete all of the heading information at the beginning of MECH-SUM."]
[null,"     For each radio button group there is a button labeled \"Clear.\" Clicking this button will clear the other buttons so that they will print as empty circles.  The \"Clear\" button will not print."]
[null,"End of Instructions for Electronic Forms"]

{"sheet":"MECH-SUM","index":1,"n_rows":116,"n_cols":9,"rows_kept":116,"cut":false,"hidden":false,"merged":[[31,0,31,1],[36,0,36,1],[37,0,39,1],[39,4,39,8],[40,4,40,8],[49,0,49,1],[32,0,32,1],[30,0,30,1],[2,3,2,6],[2,7,2,8],[3,3,3,6],[4,3,4,6],[5,3,5,6],[6,3,6,6],[7,3,7,6],[11,3,12,8],[13,3,13,8],[14,0,14,3],[29,0,29,1]]}
["Mechanical Summary",null,null,null,null,null,null,null,"MECH-SUM"]
[{"$f":"ReadMe!A2","v":"2012 Washington State Energy Code Compliance Forms for Commercial Buildings including R2 & R3 over 3 stories and all R1 "},null,null,null,null,null,null,null,{"$f":"ReadMe!B3","v":"Revised May 2015"}]
["Project Info",null,"Project Address:","1 - This address line will copy onto other forms",null,null,null,"2015-01-01"]
[null,null,null,"1 - This address line will copy onto other forms",null,null,null,"For Building Dept. Use"]
[null,null,null,"1 - This address line will copy onto other forms"]
[null,null,"Applicant Name:","1 - This address line will copy onto other forms"]
[null,null,"Applicant Address:","1 - This address line will copy onto other forms"]
[null,null,"Applicant Phone:","1 - This address line will copy onto other forms"]
[]
["Project Description"]
[]
[]
[]
[]
["Mechanical Systems Summary"]
["Equip ID"," Type of System (Note 1)","Space(s) Served","Compliance Path","Heating        and Cooling","Fan Flow Controls","Air Economizer  \n(Note 2)","Ventilation\n(Note 3)","Energy Recovery"]
[]
[]
[]
[]
[]
[]
[]
[]
[]
[]
[]
[]
[]
["HVAC Hydronic Systems"]
["Service Water Heating Systems"]
["Mechanical Schedules"]
["Design Load Calculations"]
["Mechanical Summary, pg. 2",null,null,null,null,null,null,null,"MECH-SUM"]
[{"$f":"A2","v":"2012 Washington State Energy Code Compliance Forms for Commercial Buildings including R2 & R3 over 3 stories and all R1 "},null,null,null,null,null,null,null,{"$f":"I2","v":"Revised May 2015"}]
[]
["Fan Power"]
["Commissioning Exception Summary"]
[]
[]
[]
[]
["Low Energy and Semi-Heated Spaces"]
["Space Type","Location in Plan(s)","Space(s) Served","Area Served, square feet","Heating Capacity, Btu/h \n(Note 4)","Cooling Capacity, Btu/h \n(Note 5)","Peak Space Conditioning Capacity, \nBtu/h-sf","Compliance Check","Notes"]
[null,null,null,null,null,null,{"$f":"IF(AND(D45>0, E45<>\"\",F45<>\"\"),MAX(E45,F45)/D45,\"\")","v":""},{"$f":"IF(AND(D45>0,E45<>\"\",F45<>\"\",A45<>\"\"),IF(A45=\"low energy\",IF(G45<=3.41214,\"COMPLIES\",\"DOES NOT COMPLY\"),IF(AND(G45<=8,F45=0),\"COMPLIES\",\"DOES NOT COMPLY\")),\"\")","v":""}]
[null,null,null,null,null,null,{"$f":"IF(AND(D46>0, E46<>\"\",F46<>\"\"),MAX(E46,F46)/D46,\"\")","v":""},{"$f":"IF(AND(D46>0,E46<>\"\",F46<>\"\",A46<>\"\"),IF(A46=\"low energy\",IF(G46<=3.41214,\"COMPLIES\",\"DOES NOT COMPLY\"),IF(AND(G46<=8,F46=0),\"COMPLIES\",\"DOES NOT COMPLY\")),\"\")","v":""}]
[null,null,null,null,null,null,"",""]
[null,null,null,null,null,null,"",""]
[]
[]
[]
[]
[]
[]
[]
[]
[]
[]
[]
[]
[]
[]
[]
[]
[]
[]
[]
[]
[]
["Simple single zone system"]
["Complex single zone system"]
["Complex multi-zone system"]
[]
[]
["Low energy"]
["Semi-heated"]
[]
[]
["Yes"]
["No"]
[]
["Yes"]
["No cooling, NA"]
["SS Exp1"]
["SS Exp2"]
["SS Exp3"]
["CS Exp1"]
["CS Exp2"]
["CS Exp3"]
["CS Exp4"]
["CS Exp5a"]
["CS Exp5b"]
["CS Exp5c"]
["CS Exp6"]
["Table C101.4.3.1"]
[]
[]
["Yes"]
["Not Applicable"]
[]
["Heating and cooling"]
["Heating only"]
["Cooling only"]
["No heating or cooling"]
[]
[]
["Constant volume (CV)"]
["Variable air volume (VAV)"]
["Two speed (TS)"]
["Variable speed (VS)"]
["Not applicable"]
[]
["Minimum per IMC"]
["Minimum per OSHA"]
["Natural ventilation per IMC 402"]
["Not Applicable"]

{"sheet":"MECH-CHK","index":2,"n_rows":45,"n_cols":27,"rows_kept":45,"cut":false,"hidden":false,"merged":[[27,7,27,12],[2,2,2,3],[3,0,3,3],[5,0,5,5],[6,0,6,5],[6,7,6,12],[2,9,2,10],[3,7,3,10],[5,7,5,12],[21,21,21,26],[2,16,2,17],[3,14,3,17],[13,14,13,19],[5,14,5,19],[5,21,5,26],[2,23,2,24],[3,21,3,24],[20,21,20,26]]}
["Mechanical Permit Plans Checklist - Page 1 of 4",null,null,null,null,"MECH-CHK",null,"Mechanical Permit Plans Checklist - Page 2 of 4",null,null,null,null,"MECH-CHK",null,"Mechanical Permit Plans Checklist - Page 3 of 4",null,null,null,null,"MECH-CHK",null,"Mechanical Permit Plans Checklist - Page 4 of 4",null,null,null,null,"MECH-CHK"]
[{"$f":"ReadMe!A2","v":"2012 Washington State Energy Code Compliance Forms for Commercial Buildings including R2 & R3 over 3 stories and all R1 "},null,null,null,null,{"$f":"ReadMe!B3","v":"Revised May 2015"},null,{"$f":"ReadMe!A2","v":"2012 Washington State Energy Code Compliance Forms for Commercial Buildings including R2 & R3 over 3 stories and all R1 "},null,null,null,null,{"$f":"ReadMe!B3","v":"Revised May 2015"},null,{"$f":"ReadMe!A2","v":"2012 Washington State Energy Code Compliance Forms for Commercial Buildings including R2 & R3 over 3 stories and all R1 "},null,null,null,null,{"$f":"ReadMe!B3","v":"Revised May 2015"},null,{"$f":"ReadMe!A2","v":"2012 Washington State Energy Code Compliance Forms for Commercial Buildings including R2 & R3 over 3 stories and all R1 "},null,null,null,null,{"$f":"ReadMe!B3","v":"Revised May 2015"}]
["Project Address",null,{"$f":"IF('MECH-SUM'!D3=\"1 - This address line will copy onto other forms\",\"Fill this line out on MECH-SUM\",'MECH-SUM'!D3)","v":"Fill this line out on MECH-SUM"},null,"Date",{"$f":"'MECH-SUM'!H3","v":"2015-01-01"},null,"Project Address",null,{"$f":"C3","v":"Fill this line out on MECH-SUM"},null,"Date",{"$f":"F3","v":"2015-01-01"},null,"Project Address",null,{"$f":"C3","v":"Fill this line out on MECH-SUM"},null,"Date",{"$f":"F3","v":"2015-01-01"},null,"Project Address",null,{"$f":"C3","v":"Fill this line out on MECH-SUM"},null,"Date",{"$f":"F3","v":"2015-01-01"}]
["The following information is necessary to check a permit application for compliance with the mechanicial systems and equipment requirements of the Washington State Energy Code, Commercial Provisions.",null,null,null,null,null,null,{"$f":"A4","v":"The following information is necessary to check a permit application for compliance with the mechanicial systems and equipment requirements of the Washington State Energy Code, Commercial Provisions."},null,null,null,null,null,null,{"$f":"A4","v":"The following information is necessary to check a permit application for compliance with the mechanicial systems and equipment requirements of the Washington State Energy Code, Commercial Provisions."},null,null,null,null,null,null,{"$f":"H4","v":"The following information is necessary to check a permit application for compliance with the mechanicial systems and equipment requirements of the Washington State Energy Code, Commercial Provisions."}]
["Applicable (yes,no,na)","Code Section","Code Provision","Information Required - Must be in permit documents","Location in Documents","Building Department Notes",null,"Applicable (yes,no,na)","Code Section","Code Provision","Information Required - Must be in permit documents","Location in Documents","Building Department Notes",null,"Applicable (yes,no,na)","Code Section","Code Provision","Information Required - Must be in permit documents","Location in Documents","Building Department Notes",null,"Applicable (yes,no,na)","Code Section","Code Provision","Information Required - Must be in permit documents","Location in Documents","Building Department Notes"]
["GENERAL PROVISIONS",null,null,null,null,null,null,"GENERAL PROVISIONS, CONTINUED",null,null,null,null,null,null,"COMPLEX SYSTEMS",null,null,null,null,null,null,"SERVICE WATER HEATING"]
["Equipment Sizing & Performance",null,null,null,null,null,null,"HVAC System Controls & Criteria, Continued",null,null,null,null,null,null,"Complex System Economizers",null,null,null,null,null,null,"Service Water Systems"]
[null,"C403.2.1","Load calculations","Load calculations performed per ASHRAE Std 183 or equivalent per Chapter 3",null,null,null,null,"C403.2.5.3","Enclosed loading dock/parking garage ventilation","Indicate enclosed loading dock and enclosed parking garage ventilation system activation and control method",null,null,null,null,"C403.4.1","Air economizer required","Indicate cooling systems requiring economizer controls; note in equipment schedule",null,null,null,null,"C404.2","Water-heating equip min. efficiency","Provide equipment schedule with type, capacity, efficiency, test standard or other efficiency source"]
[null,"C403.2.2","Equipment and system sizing","Output capacity of heating and cooling equipment and systems do not exceed calculated loads, note exceptions taken",null,null,null,null,"C403.2.5.4.1","Kitchen exhaust hoods","Indicate kitchen hoods requiring make-up air; indicate make-up air source and conditioning method",null,null,null,null,"C403.4.1","Air economizer exceptions","Indicate eligible exception(s) taken and provisions to comply with exception(s)",null,null,null,null,"C404.3","Temperature controls","Indicate temperature controls have required setpoint capability"]
[null,"C403.2.5","Minimum ventilation","Ventilation (natural or mechanical) provided per IMC; indicate mechanical ventilation is capable of being reduced to minimum requirement per IMC",null,null,null,null,"C403.2.5.4.2","Laboratory exhaust systems","Indicate lab exhaust systems requiring heat recovery, method & efficiency; or alternative method taken (VAV, semi-conditioned makeup, or CERM calculation)",null,null,null,null,"C403.4.1.1","Water economizer capacity","For eligible systems where water economizer may be provided in lieu of air economizer, indicate system is capable of 100% cooling capacity at 50°F db/45°F wb OSA",null,null,null,null,"C404.4","Heat traps","Indicate piping connected to equipment have heat traps on supply & discharge"]
[null,"C403.2.3 & C403.2.3.2 & C403.2.12.1","Equipment minimum efficiency","Provide equipment schedules or complete MECH-SUM tables with type, capacity, efficiency, test standard (or other efficiency source) for all mechanical equipment",null,null,null,null,"C403.2.6.1","Energy recovery (ER) -  ventilation systems","Indicate ventilation systems requiring ER, method & efficiency; note exceptions ",null,null,null,null,"C403.4.1.2","Water economizer maximum pressure drop","Indicate precooling coils and heat exchangers in water economizer system do not exceed pressure drop limit",null,null,null,null,"C404.5","Insulation under water heater","Indicate R-10 insulation under electric water heater tanks"]
[null,"C403.2.13","Electric motor efficiency","Provide equipment schedule with hp, rpm, and efficiency for all motors; note exceptions taken",null,null,null,null,"C403.2.6.2","Energy recovery (ER) - condensate systems","Indicate on-site steam heating systems requiring energy recovery",null,null,null,null,"C403.4.1.3","Integrated economizer operation","Indicate capability for partial economizer operation for air or water economizer systems",null,null,null,null,"C404.6","Service water piping insulation","Indicate R-value of insulation on piping; note exceptions taken"]
[null,"C403.2.10.1","Fan power limitation","For all applicable systems > 5hp, provide system total nameplate hp in MECH-FANSYS-SUM form",null,null,null,null,"C403.2.6.3","Energy recovery (ER) - cooler/freezer condensers","Indicate remote refrig. condensers requiring ER and use of captured energy",null,null,null,null,"C403.4.1.4","Economizer heating system impact","Verify control method of HVAC systems with economizers does not increase building heating energy usage during normal operation ",null,null,null,null,"C404.7 / 8","Circulation systems and heat trace shut-off ","Indicate shut-off capability based on occupancy and periods of limited demand"]
[null,"C403.2.10.1","Fan power limitation","For all applicable fan systems > 5hp, verify fan system motor hp or bhp complies with fan power limits per Table C403.2.10.1(1), provide MECH-FANSYS form for each system",null,null,null,null," C403.4.6","Energy recovery (ER) - condenser systems","Indicate condenser systems requiring ER to pre-heat service water; indicate ER effectiveness; note exceptions taken",null,null,null,"Specific System Requirements",null,null,null,null,null,null,null,"C404.9","Group R-2 service hot water meters","Indicate method of usage metering for dwelling units served by a central service hot water system"]
[null,"C403.2.10.2","Motor nameplate hp","Indicate fan motors specified are the smallest available motor hp size greater than fan bhp, note exceptions taken",null,null,null,null,"C403.2.12","Variable flow control - fans/pumps","Indicate fan and pump motors requiring variable flow control and method (VSD or equivalent controls) ",null,null,null,null,"C403.4.2 & C403.2.12","VAV fan control","Indicate fans requiring variable flow control and method ",null,null,null,"Pools & In-Ground Permanently Installed Spas"]
[null,"C403.2.10.3         & C403.2.13","Fractional hp fan motors","Indicate fan motors 1/12 to 1 hp are ECM type or meet minimum efficiency req.",null,null,null,null,"C403.2.12.1","Variable flow control - heat rejection equipment","Indicate heat rejection equipment and cooling tower fans requiring variable flow control and method",null,null,null,null,"C403.4.2.1","VAV fan static pressure sensors","Indicate sensor locations on plans; include at least one sensor per major duct branch",null,null,null,null,"C404.10.1","Pool heating equip min. efficiency","Provide equipment schedule with type, capacity, efficiency, test standard or other efficiency source"]
[null,"C403.2.3","Maximum air cooled chiller capacity","Indicate air-cooled chiller capacity does not exceed air-cooled chiller limit",null,null,null,null,"C403.2.12.2","Large volume fan systems","Indicate fan systems requiring airflow reduction based on heating and cooling demand; note exceptions taken",null,null,null,null,"C403.4.2.2","VAV fan static pressure setpoint","Indicate fan system static pressure setpoint based on zone requiring most pressure",null,null,null,null,"C404.10.1 / 2","Pool heater on / off controls","Indicate automatic on/off control based on scheduling & accessible on/off switch on heater that operates independent of thermostat setting; note exceptions taken"]
[null,"C403.2.3.1","Non-standard water-cooled chillers ","Full-load and NPLV values for water-cooled centrifugal chiller adjusted for non-standard operational conditions",null,null,null,null,"C403.2.12.2","Single zone AC systems","Indicate method of cooling demand-based fan control for sys. > 110,000 Btu/h",null,null,null,null,"C403.4.5","VAV systems serving multiple zones","Indicate supply air systems serving multiple zones, method of primary air control, and zones served; Indicate VAV or note exceptions taken",null,null,null,null,"C404.10.3","Pool covers","Indicate vapor retardant cover and insulation rating as required"]
[null,"C403.2.12.1.2","Centrifugal fan cooling towers","Large capacity cooling towers with centrifugal fan(s) meet efficiency requirements for axial fan open circuit cooling towers",null,null,null,null,"C403.2.4.10","DDC system capabilities","Identify all DDC system input/output control points and indicate capability for trending and demand response setpoint adjustment",null,null,null,null,"C403.4.5","VAV systems serving multiple zones","For each air system terminal, indicate the maximum air flow rate of primary supply air during zone peak cooling and the maximum air flow rates during zone peak heating.",null,null,null,null,"C404.10.3","Pool assembly insulation","Indicate rating of insulation on sides and bottom of pools heated to > 90°F"]
[null,"C403.2.3","Forced air furnace and unit heaters","Indicate intermittent ignition or IID, flue/draft damper & jacket loss",null,null,null,"Ducting Systems",null,null,null,null,null,null,null,"C403.4.5.4","VAV system supply air reset","Indicate controls that automatically reset supply air temp in response to loads",null,null,null,null,"C404.10.4","Heat recovery","Indicate method, exhaust air temperature reduction and recovered energy use; note exceptions taken"]
[null,"C403.2.3.3","Packaged electric heating/cooling equipment","Verify all packaged electric equipment that provides > 20,000 Btu/h cooling capacity and heating is a heat pump, note in equipment schedule",null,null,null,null,"C403.2.7.1 & C403.2.7.3","Duct construction","Indicate all ductwork constructed and sealed per IMC, C402 leakage requirements and IBC vapor retarder requirements",null,null,null,null,"C403.4","Large capacity cooling systems","Indicate method of multi-stage or variable control for building cooling system capacity > 300 tons",null,null,null,"COMMISSIONING"]
[null,"C403.2.3.4","Humidification","Indicate method of humidification (note requirements for systems with economizer)",null,null,null,null,"C403.2.7.3.1-3","Duct pressure classifications","Identify location of low, medium and high pressure ductwork on plans",null,null,null,null,"C403.4.7","Hot gas bypass limitation","Indicate cooling equipment unloading or capacity modulation method",null,null,null,"Specific System Requirements"]
["HVAC System Controls & Criteria",null,null,null,null,null,null,null,"C403.2.7.3.3","High pressure duct leakage test","Indicate high pressure duct leakage testing requirements on plans; provide test results to jurisdiction when completed",null,null,null,null,"C403.4.3","Large capacity boiler systems","Indicate multi-stage or modulating burner for single boilers > 500,000 Btu/h",null,null,null,null,"C408.2","Mechanical systems commissioning ","Indicate all mechanical systems to be commissioned; for those that will not be commissioned, note exception taken"]
[null,"C403.2.4.1","Thermostatic controls","Indicate locations of thermostatic control zones on plans, including perimeter systems",null,null,null,null,"C403.2.7.1 / 2","Duct insulation","Indicate R-value of insulation on ductwork",null,null,null,null,"C403.4.3","Boiler sequencing","Indicate automatic controls that sequence operation of multiple boilers",null,null,null,null,"C408.4","Service water heating systems commissioning","Indicate all service water heating systems to be commissioned; for those that will not be commissioned, note exception taken"]
[null,"C403.2.4.1.1","Heat pump supplementary heat","Indicate staged heating (compression/supplemental) and outdoor lock-out temperature is set to 40°F or less",null,null,null,"Piping Systems",null,null,null,null,null,null,null,"C403.4.3.5","Chiller / boiler plant pump isolation","Indicate capability to automatically reduce overall plant flow and shut-off flow through chillers & boilers when not in use",null,null,null,null,"C408.1.1","Commissioning plan","Provide commissioning plan for all systems requiring commissioning; include in plan all required items per this section"]
[null,"C403.2.4.2","Setpoint overlap (deadband)","Indicate 5°F deadband minimum for systems controlling both heating & cooling",null,null,null,null,"C403.2.8","Piping insulation","Indicate R-value of insulation on piping",null,null,null,null,"C403.4.3.6 & C403.2.12","Variable flow control - pumps","Indicate pumps requiring variable flow control & method ",null,null,null,null,"C408.2.2.1 & C408.2.2.2","Air system and hydronic system balancing ","Include in commissioning plan that air and hydronic systems shall be balanced in a manner to first minimize throttling losses, then adjust to meet design flow conditions"]
[null,"C403.2.4.3","Automatic setback and shutdown","Indicate zone t-stat controls with required automatic setback & manual override",null,null,null,null,"C403.2.8.1","Piping insulation exposed to weather","Indicate method of protection from damage/degredation",null,null,null,null,"C403.2.12.1       & C403.4.4","Variable flow control - cooling towers","Indicate cooling tower fans requiring variable flow control and method",null,null,null,null,"C408.2.2.1","Air system balancing devices","Indicate devices that provide the capability to balance all supply air outlets, zone terminals and equipment requiring system balancing"]
[null,"C403.2.4.3.3","Automatic (optimum) start ","Indicate system controls that adjust equip start time to match load conditions",null,null,null,"SIMPLE SYSTEMS",null,null,null,null,null,null,null,"C403.4.3.4","Hydronic system part load controls","Indicate heating & chilled water systems have the capability to automatically reset supply water temp AND reduce flow by ≥ 50% for systems > 300,000 Btu/h",null,null,null,null,"C408.2.2.2","Hydronic system balancing devices","Indicate devices that provide the capability to isolate, balance and measure flow for all hydronic equipment requiring system balancing"]
[null,"C402.4.5.2 & C403.2.4.4","OSA, exhaust, and relief air dampers","Indicate location of outdoor air supply intake, and exhaust and relief outlet dampers; verify Class 1 leakage rating and control type (motorized or gravity); note exceptions taken",null,null,null,"Qualifying Systems",null,null,null,null,null,null,null,"C403.4.3.2","Two-pipe changeover systems","Indicate deadband, heating/cooling mode scheduling and changeover temperature range",null,null,null,null,"C408.2.3","Mechanical systems functional performance testing ","Provide description of functional performance testing procedures for all applicable systems including: equipment, controls, economizers"]
[null,"C402.4.5.2","Return air dampers","Indicate location of return air dampers; verify motorized control; verify Class 1 leakage rating for all return air dampers not integral to packaged equipment",null,null,null,null,"C403.3","Qualifying single zone systems","Verify unitary or packaged equipment does not exceed capacity limits, does not have active humidifcation or simultaneous heating/cooling",null,null,null,null,"C403.4.3.3.1","Water loop heat pump - deadband","Indicate capability of central equipment to provide min. 20°F water supply temp deadband between heat rejection and heat addition modes",null,null,null,null," C408.4.1","Service water heating functional performance testing","Provide description of functional performance testing procedures for all applicable systems including: equipment, controls, pools and spas"]
[null,"C402.4.5.1","Stairway and shaft vents","Indicate location of stairway and shaft vents, verify Class 1 leakage rated motorized dampers and method of activation",null,null,null,null,"C403.3","Qualifying 2-pipe heating systems","Verify 2-pipe heating-only system does not exceed capacity limits",null,null,null,null,"C403.4.3.3.2.1","Water loop heat pump - heat rejection, Zone 4","Indicate method used to limit system heat loss when heat rejections is not needed",null,null,null,null,"C408.1.4","Systems operation training","Indicate required systems operation training measures to be provided"]
[null,"C403.2.11","Heating outside a building","Indicate radiant heat system and occupancy controls",null,null,null,null,"C403.3.2","Hydronic system controls","Refer to Complex Systems Section C403.4.3",null,null,null,null,"C403.4.3.3.2.2","Water loop heat pump - heat rejection, Zone 5","Provide heat exchanger that separates cooling tower and heat pump loop",null,null,null,null,"C408.1.2 & C403.1.3","Documentation","Indicate required documentation including: record documents, manuals, balancing reports, commissioning preliminary and final reports "]
[null,"C403.2.4.5","Snow melt systems","Indicate shut-off controls based on outdoor conditions",null,null,null,"Simple System Economizers",null,null,null,null,null,null,null,"C403.4.3.3.3","Water loop heat pump - isolation","Indicate 2-way isolation valve on each heat pump and variable flow control for systems with total pump power > 10 hp",null,null,null,null,"C408.1.2.1","Acceptance report","Indicate that Commissioning Compliance Checklist (Figure C408.1.2.1) is required upon completion of preliminary commissioning report"]
[null,"C403.2.4.6","Combustion heating equipment","Indicate modulating or staged control",null,null,null,null,"C403.3.1","Air economizer required","Indicate cooling systems requiring economizer controls; note in equipment schedule",null,null,null,null,"C403.5","Walk-in cooler / freezer - anti-sweat heaters","Indicate w/sf & control method for walk-in cooler/freezer door anti-sweat heaters"]
[null,"C403.2.4.7","Group R1 hotel/motel systems","Indicate method for guest room temperature automatic setback (heating) & set-up (cooling), confirm adjustment of at least 5°F minimum.",null,null,null,null,"C403.3.1","Air economizer exceptions","Indicate eligible exception(s) taken and provisions to comply with exception(s)",null,null,null,null,"C403.5 / 6","Cooler / freezer - evaporator and condenser fans","Indicate motor type for evaporator and condenser fans < 1 hp"]
[null,"C403.2.4.8 / 9","Group R2/R3 dwelling and sleeping unit systems","Indicate 5-2 programmable thermostats in primary spaces with minimum of two setback periods; note exceptions taken",null,null,null,null,"C403.3.1.1.1","Air economizer capacity","Indicate modulating OSA control capability up to 100% OSA; note exceptions taken"]
[null,"C403.2.5.1","Demand controlled ventilation","Indicate high-occupancy spaces and systems requiring DCV",null,null,null,null,"C403.3.1.1.2","Integrated air economizer operation","Indicate capability for partial air economizer operation for systems with capacity > 65,000 Btu/h"]
[null,"C403.2.5.2","Occupancy sensors","Indicate spaces requiring occupancy-based system control and method; or alternate means provided to automatically reduce OSA when partially occupied",null,null,null,null,"C403.3.1.1.3","Air economizer high limit controls","Indicate high limit shut-off control method per Table C403.3.1.1.3(2)"]
[]
[]
[]
[]
["yes"]
["no"]
["na"]

{"sheet":"MECH-ECONO","index":3,"n_rows":78,"n_cols":4,"rows_kept":78,"cut":false,"hidden":false,"merged":[[19,2,19,3]]}
["Economizer Exception Summary",null,null,"MECH-ECONO"]
[{"$f":"ReadMe!A2","v":"2012 Washington State Energy Code Compliance Forms for Commercial Buildings including R2 & R3 over 3 stories and all R1 "}]
["Project Info","Project Address:",{"$f":"IF('MECH-SUM'!D3=\"1 - This address line will copy onto other forms\",\"Fill this line out on MECH-SUM\",IF('MECH-SUM'!D3=0,\"\",'MECH-SUM'!D3))","v":"Fill this line out on MECH-SUM"},{"$f":"'MECH-SUM'!H3","v":"2015-01-01"}]
[null,null,{"$f":"IF('MECH-SUM'!D4=\"1 - This address line will copy onto other forms\",\"Fill this line out on MECH-SUM\",IF('MECH-SUM'!D4=0,\"\",'MECH-SUM'!D4))","v":"Fill this line out on MECH-SUM"},"For Building Dept. Use"]
[null,null,{"$f":"IF('MECH-SUM'!D5=\"1 - This address line will copy onto other forms\",\"Fill this line out on MECH-SUM\",IF('MECH-SUM'!D5=0,\"\",'MECH-SUM'!D5))","v":"Fill this line out on MECH-SUM"}]
[null,"Applicant Name:",{"$f":"IF('MECH-SUM'!D6=\"1 - This address line will copy onto other forms\",\"Fill this line out on MECH-SUM\",IF('MECH-SUM'!D6=0,\"\",'MECH-SUM'!D6))","v":"Fill this line out on MECH-SUM"}]
[null,"Applicant Address:",{"$f":"IF('MECH-SUM'!D7=\"1 - This address line will copy onto other forms\",\"Fill this line out on MECH-SUM\",IF('MECH-SUM'!D7=0,\"\",'MECH-SUM'!D7))","v":"Fill this line out on MECH-SUM"}]
[null,"Applicant Phone:",{"$f":"IF('MECH-SUM'!D8=\"1 - This address line will copy onto other forms\",\"Fill this line out on MECH-SUM\",IF('MECH-SUM'!D8=0,\"\",'MECH-SUM'!D8))","v":"Fill this line out on MECH-SUM"}]
[]
[null,null,null,"System IDs:"]
[]
[null,null,"Total Claimed Exempt Capacity:"]
[null,null,"Total building air economizer capacity ( if claimed > 72 kBtu/h) :"]
[]
[null,null,null,"System IDs:"]
[]
[]
[null,null,null,"System IDs:"]
[]
[]
[]
[null,null,null,"System IDs:"]
[]
[null,null,"Total building water economizer capacity (all systems):"]
[]
[null,null,null,"System IDs:"]
[]
[]
[null,null,null,"System IDs:"]
[]
[null,null,"Total Claimed Exempt Capacity:"]
[null,null,"Total building air economizer capacity ( if claimed > 480 kBtu/h) :"]
[]
[null,null,null,"System IDs:"]
[]
[]
[null,null,null,"System IDs:"]
[]
[null,null,"Total Claimed Exempt Capacity:"]
[null,null,"Total building air economizer capacity ( if claimed > 240 kBtu/h):"]
[]
[null,null,null,"System IDs:"]
[]
[]
[null,null,null,"System IDs \nw/ Unit Type & Option:"]
[]
[]
[]
[]
["Simple"]
["Complex"]
[]
[]
["Low energy"]
["Semi-heated"]
[]
[]
["Yes"]
["No"]
[]
["Yes"]
["SS Exp1"]
["SS Exp2"]
["SS Exp3"]
["CS Exp1"]
["CS Exp2"]
["CS Exp3"]
["CS Exp4"]
["CS Exp5a"]
["CS Exp5b"]
["CS Exp5c"]
["CS Exp6"]
["Other"]
[]
[]
["Yes"]
["NA"]
["C408.2 exception"]

{"sheet":"MECH-FANSYS-SUM","index":4,"n_rows":34,"n_cols":5,"rows_kept":34,"cut":false,"hidden":false,"merged":[[2,3,2,4]]}
["Mechanical Fan System Power Allowance",null,null,null,"MECH-FANSYS-SUM"]
[{"$f":"ReadMe!A2","v":"2012 Washington State Energy Code Compliance Forms for Commercial Buildings including R2 & R3 over 3 stories and all R1 "},null,null,null,{"$f":"ReadMe!B3","v":"Revised May 2015"}]
["Project Info","Project Address:",{"$f":"IF('MECH-SUM'!D3=\"1 - This address line will copy onto other forms\",\"Fill this line out on MECH-SUM\",IF('MECH-SUM'!D3=0,\"\",'MECH-SUM'!D3))","v":"Fill this line out on MECH-SUM"},{"$f":"'MECH-SUM'!H3","v":"2015-01-01"}]
[null,null,{"$f":"IF('MECH-SUM'!D4=\"1 - This address line will copy onto other forms\",\"Fill this line out on MECH-SUM\",IF('MECH-SUM'!D4=0,\"\",'MECH-SUM'!D4))","v":"Fill this line out on MECH-SUM"},"For Building Dept. Use"]
[null,null,{"$f":"IF('MECH-SUM'!D5=\"1 - This address line will copy onto other forms\",\"Fill this line out on MECH-SUM\",IF('MECH-SUM'!D5=0,\"\",'MECH-SUM'!D5))","v":"Fill this line out on MECH-SUM"}]
[null,"Applicant Name:",{"$f":"IF('MECH-SUM'!D6=\"1 - This address line will copy onto other forms\",\"Fill this line out on MECH-SUM\",IF('MECH-SUM'!D6=0,\"\",'MECH-SUM'!D6))","v":"Fill this line out on MECH-SUM"}]
[null,"Applicant Address:",{"$f":"IF('MECH-SUM'!D7=\"1 - This address line will copy onto other forms\",\"Fill this line out on MECH-SUM\",IF('MECH-SUM'!D7=0,\"\",'MECH-SUM'!D7))","v":"Fill this line out on MECH-SUM"}]
[null,"Applicant Phone:",{"$f":"IF('MECH-SUM'!D8=\"1 - This address line will copy onto other forms\",\"Fill this line out on MECH-SUM\",IF('MECH-SUM'!D8=0,\"\",'MECH-SUM'!D8))","v":"Fill this line out on MECH-SUM"}]
["HVAC Air Distribution System Schedule"]
["Fan System ID","Speed Control\n(Note 1)","Description","System Total Nameplate HP (Note 2)","Fan Power Calculation\n(Note 3)"]
[]
[]
[]
[]
[]
[]
[]
[]
[]
[]
[]
[]
[]
["MECH-FANSYS Forms"]
[]
[]
[]
["CV"]
["VAV"]
["Hospital/Lab"]
[]
["Yes"]
["< 5 hp"]
["No"]

{"sheet":"MECH-FANSYS","index":5,"n_rows":112,"n_cols":12,"rows_kept":112,"cut":false,"hidden":false,"merged":[[23,3,23,5],[2,4,2,5],[8,2,8,5],[10,2,10,5],[2,2,2,3],[3,2,3,3],[4,2,4,3],[5,2,5,3],[6,2,6,3],[7,2,7,3]]}
["Mechanical Fan System Power Allowance",null,null,null,null,"MECH-FANSYS"]
[{"$f":"ReadMe!A2","v":"2012 Washington State Energy Code Compliance Forms for Commercial Buildings including R2 & R3 over 3 stories and all R1 "},null,null,null,null,{"$f":"ReadMe!B3","v":"Revised May 2015"}]
["Project Info","Project Address:",{"$f":"IF('MECH-SUM'!D3=\"1 - This address line will copy onto other forms\",\"Fill this line out on MECH-SUM\",IF('MECH-SUM'!D3=0,\"\",'MECH-SUM'!D3))","v":"Fill this line out on MECH-SUM"},null,{"$f":"'MECH-SUM'!H3","v":"2015-01-01"}]
[null,null,{"$f":"IF('MECH-SUM'!D4=\"1 - This address line will copy onto other forms\",\"Fill this line out on MECH-SUM\",IF('MECH-SUM'!D4=0,\"\",'MECH-SUM'!D4))","v":"Fill this line out on MECH-SUM"},null,"For Building Dept. Use"]
[null,null,{"$f":"IF('MECH-SUM'!D5=\"1 - This address line will copy onto other forms\",\"Fill this line out on MECH-SUM\",IF('MECH-SUM'!D5=0,\"\",'MECH-SUM'!D5))","v":"Fill this line out on MECH-SUM"}]
[null,"Applicant Name:",{"$f":"IF('MECH-SUM'!D6=\"1 - This address line will copy onto other forms\",\"Fill this line out on MECH-SUM\",IF('MECH-SUM'!D6=0,\"\",'MECH-SUM'!D6))","v":"Fill this line out on MECH-SUM"}]
[null,"Applicant Address:",{"$f":"IF('MECH-SUM'!D7=\"1 - This address line will copy onto other forms\",\"Fill this line out on MECH-SUM\",IF('MECH-SUM'!D7=0,\"\",'MECH-SUM'!D7))","v":"Fill this line out on MECH-SUM"},null,{"$f":"#REF!","v":{"$error":"#REF!"}}]
[null,"Applicant Phone:",{"$f":"IF('MECH-SUM'!D8=\"1 - This address line will copy onto other forms\",\"Fill this line out on MECH-SUM\",IF('MECH-SUM'!D8=0,\"\",'MECH-SUM'!D8))","v":"Fill this line out on MECH-SUM"},null,{"$f":"#REF!","v":{"$error":"#REF!"}}]
["Fan System ID"]
["System Supply Fan Speed Control "]
["Compliance Option ",null,null,null,null,null,null,null,null,"i``","i","i`"]
["Fan System Supply CFM Total",{"$f":"SUMIF(B15:B19,\"*Supply*\",D15:D19)","v":0}]
["Fan Equipment Schedule",null,null,null,null,null," if any entry in b:f then B:E must be completed, if BHP option then F must be entered"]
["Fan ID and Location","Fan Type","Quantity of Fan Type","\nTotal CFM\n(Note 1)","Total Nameplate HP (Note 2)","Total BHP\n(Note 3)","-1=nothing entered,0=good to go, 2=data not complete nhp, 3 data not complete bhp","0=good to go, nothing entered, or compliance option=Nameplate, 1= max hp error hp too big  (only for bhp compliance option)"]
[null,null,null,null,null,null,{"$f":"IF(AND(B15=\"\",C15<=0,D15<=0,E15<=0,F15<=0),-1,IF($B$11=\"Nameplate HP\",IF(AND(B15<>\"\",C15>0,D15>0,E15>0),0,2),IF(AND(B15<>\"\",C15>0,D15>0,E15>0,F15>0),0,3)))","v":-1},{"$f":"IF($B$11=\"Nameplate HP\",0,IF(G15<>0,0,IF(E15>IF(F15<=6,IF(INDEX(NominalMotorSizes,MATCH(F15,NominalMotorSizes,1)+1,1)/F15>1.5,INDEX(NominalMotorSizes,MATCH(F15,NominalMotorSizes,1)+1,1),INDEX(NominalMotorSizes,MATCH(F15,NominalMotorSizes,1)+2,1)),IF(INDEX(NominalMotorSizes,MATCH(F15,NominalMotorSizes,1)+1,1)/F15>1.3,INDEX(NominalMotorSizes,MATCH(F15,NominalMotorSizes,1)+1,1),INDEX(NominalMotorSizes,MATCH(F15,NominalMotorSizes,1)+2,1))),1,0)))","v":0}]
[null,null,null,null,null,null,{"$f":"IF(AND(B16=\"\",C16<=0,D16<=0,E16<=0,F16<=0),-1,IF($B$11=\"Nameplate HP\",IF(AND(B16<>\"\",C16>0,D16>0,E16>0),0,2),IF(AND(B16<>\"\",C16>0,D16>0,E16>0,F16>0),0,3)))","v":-1},{"$f":"IF($B$11=\"Nameplate HP\",0,IF(G16<>0,0,IF(E16>IF(F16<=6,IF(INDEX(NominalMotorSizes,MATCH(F16,NominalMotorSizes,1)+1,1)/F16>1.5,INDEX(NominalMotorSizes,MATCH(F16,NominalMotorSizes,1)+1,1),INDEX(NominalMotorSizes,MATCH(F16,NominalMotorSizes,1)+2,1)),IF(INDEX(NominalMotorSizes,MATCH(F16,NominalMotorSizes,1)+1,1)/F16>1.3,INDEX(NominalMotorSizes,MATCH(F16,NominalMotorSizes,1)+1,1),INDEX(NominalMotorSizes,MATCH(F16,NominalMotorSizes,1)+2,1))),1,0)))","v":0}]
[null,null,null,null,null,null,-1,{"$f":"IF($B$11=\"Nameplate HP\",0,IF(G17<>0,0,IF(E17>IF(F17<=6,IF(INDEX(NominalMotorSizes,MATCH(F17,NominalMotorSizes,1)+1,1)/F17>1.5,INDEX(NominalMotorSizes,MATCH(F17,NominalMotorSizes,1)+1,1),INDEX(NominalMotorSizes,MATCH(F17,NominalMotorSizes,1)+2,1)),IF(INDEX(NominalMotorSizes,MATCH(F17,NominalMotorSizes,1)+1,1)/F17>1.3,INDEX(NominalMotorSizes,MATCH(F17,NominalMotorSizes,1)+1,1),INDEX(NominalMotorSizes,MATCH(F17,NominalMotorSizes,1)+2,1))),1,0)))","v":0}]
[null,null,null,null,null,null,-1,{"$f":"IF($B$11=\"Nameplate HP\",0,IF(G18<>0,0,IF(E18>IF(F18<=6,IF(INDEX(NominalMotorSizes,MATCH(F18,NominalMotorSizes,1)+1,1)/F18>1.5,INDEX(NominalMotorSizes,MATCH(F18,NominalMotorSizes,1)+1,1),INDEX(NominalMotorSizes,MATCH(F18,NominalMotorSizes,1)+2,1)),IF(INDEX(NominalMotorSizes,MATCH(F18,NominalMotorSizes,1)+1,1)/F18>1.3,INDEX(NominalMotorSizes,MATCH(F18,NominalMotorSizes,1)+1,1),INDEX(NominalMotorSizes,MATCH(F18,NominalMotorSizes,1)+2,1))),1,0)))","v":0}]
[]
[null,null,null,"Total Proposed:",{"$f":"IF(SUM(E15:E19)>0,SUM(E15:E19),\"\")","v":""},{"$f":"IF(SUM(F15:F19)>0,SUM(F15:F19),\"\")","v":""},{"$f":"MAX(G15:G19)","v":-1},{"$f":"MAX(H15:H19)","v":0}]
[]
[null,null,null,"Total Allowance:",{"$f":"IF(AND(CFMs>0,CVVAV<>\"\"),CFMs*IF(OR(CVVAV=\"VAV\",CVVAV=\"Hospital/Lab\"),0.0015,0.0011),\"\")","v":""},{"$f":"IF(AND(CFMs>0,CVVAV<>\"\"),CFMs*IF(OR(CVVAV=\"VAV\",CVVAV=\"Hospital/Lab\"),0.0013,0.00094)+HpAdj,\"\")","v":""},null,"if no data, compliance option=nameplate hp=0, if compliance option =brake hp, 1=excessive, 0 okay."]
[]
["",null,"Compliance Message:",{"$f":"IF(G20=-1,\"\",IF(B10=\"\",\"Enter speed control in B10\",IF(B11=\"\",\"Enter Compliance Option in B11\",IF(G20>0,\"Complete yellow highlighted cells in fan entry\",IF(B12<=0,\"Enter at least one Supply Fan in schedule\",IF(H20=1,\"DOES NOT COMPLY.  Fan hp in orange cells too large (see C403.2.10.2)\",IF(B11=\"Brake HP\",IF(F20<=F22,\"COMPLIES\",\"DOES NOT COMPLY\"),IF(E20<=E22,\"COMPLIES\",\"DOES NOT COMPLY\"))))))))","v":""}]
[]
["Brake Horsepower Allowance Adjustments"]
["Device Type","Description and Location"," CFM thorough this device (CFMD)","Assigned Pressure Drop, PD in w.c. \n(Note 5)","Calculated Pressure Drop, PD in w.c. \n(Note 6)","Adjustment, \nA in bhp\n(Note 7)"]
[null,null,null,{"$f":"IF(ISNA(VLOOKUP(A28,$A$97:$E$112,3,FALSE)),\"\",VLOOKUP(A28,$A$97:$E$112,3,FALSE))","v":""},null,{"$f":"IF(A28=\"\",\"\",MAX(D28,E28)*C28/4131)","v":""}]
[null,null,null,{"$f":"IF(ISNA(VLOOKUP(A29,$A$97:$E$112,3,FALSE)),\"\",VLOOKUP(A29,$A$97:$E$112,3,FALSE))","v":""},null,{"$f":"IF(A29=\"\",\"\",MAX(D29,E29)*C29/4131)","v":""}]
[null,null,null,{"$f":"IF(ISNA(VLOOKUP(A30,$A$97:$E$112,3,FALSE)),\"\",VLOOKUP(A30,$A$97:$E$112,3,FALSE))","v":""},null,{"$f":"IF(A30=\"\",\"\",MAX(D30,E30)*C30/4131)","v":""}]
[null,null,null,{"$f":"IF(ISNA(VLOOKUP(A31,$A$97:$E$112,3,FALSE)),\"\",VLOOKUP(A31,$A$97:$E$112,3,FALSE))","v":""},null,{"$f":"IF(A31=\"\",\"\",MAX(D31,E31)*C31/4131)","v":""}]
[]
[null,null,null,null,"Total Adjustment (bhp):",{"$f":"IF(OR(SUM(C28:C32)>0,F20<>\"\"),SUM(F28:F32),\"\")","v":""}]
[]
[]
[]
[]
["General Instructions:"]
[]
[]
[]
["Standard Motor Sizes"]
["OR only went to 200"]
[0]
[1]
[1.5]
[2,"Additional sizes found in some motor types / manufacturers"]
[3,4]
[5,5.5]
[7.5,7]
[10,12]
[15]
[20]
[25]
[30]
[40]
[50]
[60]
[75]
[100]
[125]
[150]
[200,175]
[250]
[300]
[350]
[400]
[450]
[500]
[]
[]
["Fan Types"]
["Supply"]
["Return"]
["Exhaust"]
["Hood Exhaust"]
["Series Fan Powered Terminal"]
["Make-up Air - Supply"]
["ERV - Supply"]
["ERV - Exhaust"]
["DOAS - Supply"]
["DOAS - Exhaust"]
["Booster"]
["Other"]
[]
["Fan Control Types"]
["CV"]
["Hospital/Lab"]
["VAV"]
[]
["Compliance Options"]
["Nameplate HP"]
["Brake HP"]
[]
["Brake Horsepower Power Allowance Adjustment Factors"]
["Device","Formula","Credit","Extra Info Caption"]
["Fully ducted return and/or exhaust","0.5 inch w.c. (2.15 inches w.c. for laboratory and vivarium systems)",0.5,"none"]
["Fully ducted return and/or exhaust, laboratory",null,2.15,"none"]
["Return and/or exhaust air flow control devices","0.5 inch w.c.",0.5,"none"]
["Exhaust filters, scrubbers, or treatment","The pressure drop of device calculated at fan system design condition"," ","device pressure drop (in. wc)"]
["Particulate filtration: MERV 9 - 12 ","0.5 inch w.c.",0.5,"none"]
["Particulate filtration: MERV 13 - 15 ","0.9 inch w.c.",0.9,"none"]
["Particulate filtration: MERV 16+","Pressure drop calculated at 2x clean filter pressure drop at fan system design condition"," ","2 times pressure drop of clean filter (in. wc)"]
["Particulate filtration: electronically enhanced filters","Pressure drop calculated at 2x clean filter pressure drop at fan system design condition"," ","2 times pressure drop of clean filter (in. wc)"]
["Carbon and other gas-phase air cleaners","Clean filter pressure drop at fan system design condition"," ","device pressure drop (in. wc)"]
["Biosafety cabinet ","Pressure drop of device at fan system design condition"," ","device pressure drop (in. wc)"]
["Energy recovery device, other than coil (Note 4)","(2.2 × energy recovery effectiveness) –0.5 inch w.c. for each airstream"," ","ER effectiveness (0-1)"]
["Coil runaround loop (Note 4)"," 0.6 inch w.c. for each airstream",0.6,"none"]
["Evaporative humidifier/cooler in series with another cooling coil","Pressure drop of device at fan system design conditions"," ","device pressure drop (in. wc)"]
["Sound attenuation section"," 0.15 inch w.c.",0.15,"none"]
["Exhaust system serving fume hoods"," 0.35 inch w.c.",0.35,"none"]
["Lab and vivarium exhaust in high-rise buildings","0.25 inch w.c./100 feet of vertical duct exceeding 75'"," ","length of vertical duct (ft)"]

{"sheet":"MECH-FANSYS-DOC","index":6,"n_rows":23,"n_cols":4,"rows_kept":23,"cut":false,"hidden":false,"merged":[[3,1,3,2],[4,1,4,2],[6,1,6,2]]}
["Fan Power Allowance Adjustment Factors ",null,null,"MECH-FANSYS-DOC"]
[{"$f":"ReadMe!A2","v":"2012 Washington State Energy Code Compliance Forms for Commercial Buildings including R2 & R3 over 3 stories and all R1 "},null,null,{"$f":"ReadMe!B3","v":"Revised May 2015"}]
[]
[null,"TABLE C403.2.10.1(2)"]
[null,"FAN POWER LIMITATION PRESSURE DROP ADJUSTMENT"]
[null,"Device","Adjustment"]
[null,"Credits"]
[null,"Fully ducted return and/or exhaust air systems","0.5 inch w.c. (2.15 inches w.c. for laboratory and vivarium systems)"]
[null,"Return and/or exhaust air flow control devices ","0.5 inch w.c."]
[null,"Exhaust filters, scrubbers, or other exhaust treatment","The pressure drop of device calculated at fan system design condition"]
[null,"Particulate filtration credit:  MERV 9 ‑ 12 ","0.5 inch w.c."]
[null,"Particulate filtration credit:  MERV 13 ‑ 15 ","0.9 inch w.c."]
[null,"Particulate filtration credit:  MERV 16 and greater and electronically enhanced filters","Pressure drop calculated at 2x clean filter pressure drop at fan system design condition"]
[null,"Carbon and other gas-phase air cleaners ","Clean filter pressure drop at fan system design condition"]
[null,"Biosafety cabinet ","Pressure drop of device at fan system design condition"]
[null,"Energy recovery device, other than coil runaround loop","(2.2 × energy recovery effectiveness) – 0.5 inch w.c. for each airstream"]
[null,"Coil runaround loop ","0.6 inch w.c. for each airstream"]
[null,"Evaporative humidifier/cooler in series with another cooling coil ","Pressure drop of device at fan system design conditions"]
[null,"Sound attenuation section ","0.15 inch w.c."]
[null,"Exhaust system serving fume hoods ","0.35 inch w.c."]
[null,"Laboratory and vivarium exhaust systems in high-rise buildings ","0.25 inch w.c./100 feet of vertical duct exceeding 75 feet"]
[null,"w.c. .= water column."]
[null,"For SI:  1 inch w.c..= 249 Pa, 1 inch.= 25.4 mm."]

{"sheet":"MECH-LOAD-CALC","index":7,"n_rows":9,"n_cols":6,"rows_kept":9,"cut":false,"hidden":false,"merged":[[7,3,7,4],[2,3,2,4],[3,3,3,4],[4,3,4,4],[5,3,5,4],[6,3,6,4]]}
["Design Load Calculation Summary",null,null,null,null,"MECH-LOAD-CALC"]
[{"$f":"ReadMe!A2","v":"2012 Washington State Energy Code Compliance Forms for Commercial Buildings including R2 & R3 over 3 stories and all R1 "}]
["Project Info",null,"Project Address:",{"$f":"IF('MECH-SUM'!D3=\"1 - This address line will copy onto other forms\",\"Fill this line out on MECH-SUM\",IF('MECH-SUM'!D3=0,\"\",'MECH-SUM'!D3))","v":"Fill this line out on MECH-SUM"},null,{"$f":"'MECH-SUM'!H3","v":"2015-01-01"}]
[null,null,null,{"$f":"IF('MECH-SUM'!D4=\"1 - This address line will copy onto other forms\",\"Fill this line out on MECH-SUM\",IF('MECH-SUM'!D4=0,\"\",'MECH-SUM'!D4))","v":"Fill this line out on MECH-SUM"},null,"For Building Dept. Use"]
[null,null,null,{"$f":"IF('MECH-SUM'!D5=\"1 - This address line will copy onto other forms\",\"Fill this line out on MECH-SUM\",IF('MECH-SUM'!D5=0,\"\",'MECH-SUM'!D5))","v":"Fill this line out on MECH-SUM"}]
[null,null,"Applicant Name:",{"$f":"IF('MECH-SUM'!D6=\"1 - This address line will copy onto other forms\",\"Fill this line out on MECH-SUM\",IF('MECH-SUM'!D6=0,\"\",'MECH-SUM'!D6))","v":"Fill this line out on MECH-SUM"}]
[null,null,"Applicant Address:",{"$f":"IF('MECH-SUM'!D7=\"1 - This address line will copy onto other forms\",\"Fill this line out on MECH-SUM\",IF('MECH-SUM'!D7=0,\"\",'MECH-SUM'!D7))","v":"Fill this line out on MECH-SUM"}]
[null,null,"Applicant Phone:",{"$f":"IF('MECH-SUM'!D8=\"1 - This address line will copy onto other forms\",\"Fill this line out on MECH-SUM\",IF('MECH-SUM'!D8=0,\"\",'MECH-SUM'!D8))","v":"Fill this line out on MECH-SUM"}]
["Equip. ID","Area(s) Served","Heating Design Load  - Btu/h (Note 1)","Cooling Design Load - Btu/h (Note 1)","Calculation Method\n(Note 2)","Notes"]

{"sheet":"MECH-EQ","index":8,"n_rows":135,"n_cols":36,"rows_kept":135,"cut":false,"hidden":false,"merged":[[2,14,2,17],[3,14,3,17],[4,14,4,17],[8,0,8,2],[5,3,5,5],[6,3,6,5],[7,3,7,5],[5,14,5,17],[6,14,6,17],[7,14,7,17],[8,12,8,16],[8,17,8,20],[39,3,39,4],[38,3,38,6],[8,3,8,8],[2,7,2,9],[2,3,2,5],[3,3,3,5],[4,3,4,5]]}
["Cooling & Heating Equipment Schedule, Page 1",null,null,null,null,null,null,null,null,"MECH-EQ",null,"Cooling & Heating Equipment Schedule, Page 2",null,null,null,null,null,null,null,null,{"$f":"J1","v":"MECH-EQ"}]
[{"$f":"ReadMe!A2","v":"2012 Washington State Energy Code Compliance Forms for Commercial Buildings including R2 & R3 over 3 stories and all R1 "},null,null,null,null,null,null,null,null,{"$f":"ReadMe!B3","v":"Revised May 2015"},null,{"$f":"A2","v":"2012 Washington State Energy Code Compliance Forms for Commercial Buildings including R2 & R3 over 3 stories and all R1 "},null,null,null,null,null,null,null,null,{"$f":"J2","v":"Revised May 2015"}]
["Project Info",null,"Project Address:",{"$f":"IF('MECH-SUM'!D3=\"1 - This address line will copy onto other forms\",\"Fill this line out on MECH-SUM\",IF('MECH-SUM'!D3=0,\"\",'MECH-SUM'!D3))","v":"Fill this line out on MECH-SUM"},null,null,null,{"$f":"'MECH-SUM'!H3","v":"2015-01-01"},null,null,null,"Project Info",null,"Project Address:",{"$f":"D3","v":"Fill this line out on MECH-SUM"},null,null,null,null,null,{"$f":"H3","v":"2015-01-01"}]
[null,null,null,{"$f":"IF('MECH-SUM'!D4=\"1 - This address line will copy onto other forms\",\"Fill this line out on MECH-SUM\",IF('MECH-SUM'!D4=0,\"\",'MECH-SUM'!D4))","v":"Fill this line out on MECH-SUM"},null,null,"For Building Dept. Use",null,null,null,null,null,null,null,"Fill this line out on MECH-SUM",null,null,null,"For Building Dept. Use"]
[null,null,null,{"$f":"IF('MECH-SUM'!D5=\"1 - This address line will copy onto other forms\",\"Fill this line out on MECH-SUM\",IF('MECH-SUM'!D5=0,\"\",'MECH-SUM'!D5))","v":"Fill this line out on MECH-SUM"},null,null,null,null,null,null,null,null,null,null,"Fill this line out on MECH-SUM"]
[null,null,"Applicant Name:",{"$f":"IF('MECH-SUM'!D6=\"1 - This address line will copy onto other forms\",\"Fill this line out on MECH-SUM\",IF('MECH-SUM'!D6=0,\"\",'MECH-SUM'!D6))","v":"Fill this line out on MECH-SUM"},null,null,null,null,null,null,null,null,null,"Applicant Name:","Fill this line out on MECH-SUM"]
[null,null,"Applicant Address:",{"$f":"IF('MECH-SUM'!D7=\"1 - This address line will copy onto other forms\",\"Fill this line out on MECH-SUM\",IF('MECH-SUM'!D7=0,\"\",'MECH-SUM'!D7))","v":"Fill this line out on MECH-SUM"},null,null,null,null,null,null,null,null,null,"Applicant Address:","Fill this line out on MECH-SUM"]
[null,null,"Applicant Phone:",{"$f":"IF('MECH-SUM'!D8=\"1 - This address line will copy onto other forms\",\"Fill this line out on MECH-SUM\",IF('MECH-SUM'!D8=0,\"\",'MECH-SUM'!D8))","v":"Fill this line out on MECH-SUM"},null,null,null,null,null,null,null,null,null,"Applicant Phone:","Fill this line out on MECH-SUM"]
["Heating and/or Cooling Systems (Note 1)",null,null,"Cooling System",null,null,null,null,null,null,null,null,"Heating System",null,null,null,null,"Air System"]
["Equip.\nID","Make & Model","Area(s) Served","WSEC Efficiency Table","Equipment Type","Condenser or Sub- Type"," Cooling Capacity, Btu/h\n(Note 2)","Rated Efficiency (Note 3 )","Rated Part Load Efficiency (Note 4)","Economizer exception - required % higher efficiency",null,{"$f":"A10","v":"Equip.\nID"},"WSEC Efficiency Table","Equipment Type","Sub-type or  Fuel","Capacity,  Btu/h \n(Note 5)","Rated Efficiency (Note 6)","Supply CFM","Ventilation CFM","Zone DCV or Occ. Sensors \n(Indicate type & zones(s) if required)","Ventilation Energy Recovery\n(Yes or Not required)","Cool table item range name","cooling equipment range name","ht table range","Heat table item range name","heating equipment range name","HP flag","lock heat Table (hp in cool list)","hp in heat list","old cool tab","old cool equp","old cool type","old heat tab","old heat equip","old heat equip type"]
[null,null,null,null,null,null,null,null,null,null,null,{"$f":"A11","v":0},null,null,null,null,null,null,null,null,null,{"$f":"IF(D11<>\"\",VLOOKUP(D11,$A$40:$B$47,2,FALSE),\"\")","v":""},{"$f":"IF(E11<>\"\",VLOOKUP(E11,E$42:F$60,2,FALSE),\"\")","v":""},{"$f":"IF(AND(V11<>\"\",V11<>\"None\"),  IF(V11=\"ztab_PTAC\",IF(W11=\"\",\"zTabHeat_nonHPplusPTHP\",IF(ISERR(FIND(\"HP\",W11,1)),\"zTabHeat_nonHP\",\"zTabHeat_ptHP\")), VLOOKUP(V11,D$42:G$61,4,FALSE)),\"zTabHeat_all\")","v":"zTabHeat_all"},{"$f":"IF(M11<>\"\",VLOOKUP(M11,A$51:B$56,2,FALSE),\"\")","v":""},{"$f":"IF(N11<>\"\",VLOOKUP(N11,E$42:F$70,2,FALSE),\"\")","v":""},{"$f":"OR(ISNUMBER(SEARCH(\"HP\",E11)),ISNUMBER(SEARCH(\"Heat Pump\",E11)),ISNUMBER(SEARCH(\"HP\",N11)),ISNUMBER(SEARCH(\"Heat Pump\",N11)))","v":false},{"$f":"IF(OR(D11=\"C403.2.3(1)D VRF Air-to-air and Applied Heat Pumps\",D11=\"C403.2.3(2) Unitary & Applied Heat Pumps\",ISNUMBER(SEARCH(\"HP\",E11))),1,0)","v":0},{"$f":"IF(OR(M11=\"C403.2.3(1)D VRF Air-to-air and Applied Heat Pumps\",M11=\"C403.2.3(2) Unitary & Applied Heat Pumps\",ISNUMBER(SEARCH(\"HP\",N11))),1,0)","v":0}]
[null,null,null,null,null,null,null,null,null,null,null,{"$f":"A12","v":0},null,null,null,null,null,null,null,null,null,"","","zTabHeat_all","","",{"$f":"OR(ISNUMBER(SEARCH(\"HP\",E12)),ISNUMBER(SEARCH(\"Heat Pump\",E12)),ISNUMBER(SEARCH(\"HP\",N12)),ISNUMBER(SEARCH(\"Heat Pump\",N12)))","v":false},{"$f":"IF(OR(D12=\"C403.2.3(1)D VRF Air-to-air and Applied Heat Pumps\",D12=\"C403.2.3(2) Unitary & Applied Heat Pumps\",ISNUMBER(SEARCH(\"HP\",E12))),1,0)","v":0},{"$f":"IF(OR(M12=\"C403.2.3(1)D VRF Air-to-air and Applied Heat Pumps\",M12=\"C403.2.3(2) Unitary & Applied Heat Pumps\",ISNUMBER(SEARCH(\"HP\",N12))),1,0)","v":0}]
[null,null,null,null,null,null,null,null,null,null,null,0,null,null,null,null,null,null,null,null,null,"","","zTabHeat_all","","",false,0,0]
[null,null,null,null,null,null,null,null,null,null,null,0,null,null,null,null,null,null,null,null,null,"","","zTabHeat_all","","",false,0,0]
[null,null,null,null,null,null,null,null,null,null,null,0,null,null,null,null,null,null,null,null,null,"","","zTabHeat_all","","",false,0,0]
[null,null,null,null,null,null,null,null,null,null,null,0,null,null,null,null,null,null,null,null,null,"","","zTabHeat_all","","",false,0,0]
[null,null,null,null,null,null,null,null,null,null,null,0,null,null,null,null,null,null,null,null,null,"","","zTabHeat_all","","",false,0,0]
[null,null,null,null,null,null,null,null,null,null,null,0,null,null,null,null,null,null,null,null,null,"","","zTabHeat_all","","",false,0,0]
[null,null,null,null,null,null,null,null,null,null,null,0,null,null,null,null,null,null,null,null,null,"","","zTabHeat_all","","",false,0,0]
[null,null,null,null,null,null,null,null,null,null,null,0,null,null,null,null,null,null,null,null,null,"","","zTabHeat_all","","",false,0,0]
[null,null,null,null,null,null,null,null,null,null,null,0,null,null,null,null,null,null,null,null,null,"","","zTabHeat_all","","",false,0,0]
[null,null,null,null,null,null,null,null,null,null,null,0,null,null,null,null,null,null,null,null,null,"","","zTabHeat_all","","",false,0,0]
[null,null,null,null,null,null,null,null,null,null,null,0,null,null,null,null,null,null,null,null,null,"","","zTabHeat_all","","",false,0,0]
[null,null,null,null,null,null,null,null,null,null,null,0,null,null,null,null,null,null,null,null,null,"","","zTabHeat_all","","",false,0,0]
[null,null,null,null,null,null,null,null,null,null,null,0,null,null,null,null,null,null,null,null,null,"","","zTabHeat_all","","",false,0,0]
[null,null,null,null,null,null,null,null,null,null,null,0,null,null,null,null,null,null,null,null,null,"","","zTabHeat_all","","",false,0,0]
[null,null,null,null,null,null,null,null,null,null,null,0,null,null,null,null,null,null,null,null,null,"","","zTabHeat_all","","",false,0,0]
[null,null,null,null,null,null,null,null,null,null,null,{"$f":"A28","v":0},null,null,null,null,null,null,null,null,null,"","","zTabHeat_all","","",false,0,0,null,null,null,null,null,null,1]
[]
[]
[]
[]
[]
[]
[null,null,null,null,null,null,"zAC_"]
[null,null,null,null,null,null,"zHT_"]
[null,null,null,null,null,null,"zHTsub"]
["Cooling Tables"]
["display","range name",null,"Equipment Table Map"]
["C403.2.3(1)A Air Conditioners and Condensing Units","zTab_AC"]
["C403.2.3(1)B Computer Room Units","zTab_CRAC",null,"Table range items","cool eq display","cool eq range","allowable heat table range","heat eq range",null,null,49]
["C403.2.3(1)C VRF Air Conditioners","zTab_VRFAC",null,{"$f":"B$40","v":"zTab_AC"},"Air conditioner","zAC_Air_conditioner","zTabHeat_nonHP",null,null,null,50,null,"Heating Tables"]
["C403.2.3(1)D VRF Air-to-air and Applied Heat Pumps","zTab_VRFHP",null,{"$f":"B$40","v":"zTab_AC"},"Thru the wall AC","zAC_Thru_the_wall_AC","zTabHeat_nonHP",null,null,null,51,"zTab_VRFAC","C403.2.3(1)D VRF Heat Pumps"]
["C403.2.3(2) Unitary & Applied Heat Pumps","zTab_HP",null,{"$f":"B$40","v":"zTab_AC"},"Condensing unit","zAC_Condensing_unit","zTabHeat_nonHP",null,null,null,52,"zTab_HP","C403.2.3(2) Unitary & Applied Heat Pumps"]
["C403.2.3(3) PTAC, PTHP, SPVAC/HP, Room AC","ztab_PTAC",null,{"$f":"B41","v":"zTab_CRAC"},"CRAC","zAC_CRAC","zTabHeat_nonHP",null,null,null,53,"ztab_PTAC","C403.2.3(3) PTAC, PTHP, SPVAC/HP, Room AC"]
["Unrated","zTab_UnratedCoolEq",null,{"$f":"B42","v":"zTab_VRFAC"},"VRF AC","zAC_VRF_AC","zTabHeat_nonHP",null,null,null,54,"zTab_Furnaces","C403.2.3(4) Furnaces and Unit Heaters"]
["None","zTab_None",null,{"$f":"B43","v":"zTab_VRFHP"},"VRF HP","zAC_VRF_HP","zTabHeat_VRFHP",null,null,null,55,"ztab_unratedHeater","Unrated"]
[null,null,null,{"$f":"B43","v":"zTab_VRFHP"},"VRF HP with Heat recovery","zAC_VRF_HP_with_Heat_recovery","zTabHeat_VRFHP",null,null,null,56,null,"None"]
["Heating Tables",null,null,{"$f":"B$44","v":"zTab_HP"},"Heat pump","zAC_Heat_pump","zTabHeat_HP"]
["display","range name",null,{"$f":"B$44","v":"zTab_HP"},"Thru the wall HP","zAC_Thru_the_wall_HP","zTabHeat_HP"]
["C403.2.3(1)D VRF Air-to-air and Applied Heat Pumps","zTab_VRFHP",null,{"$f":"B$44","v":"zTab_HP"},"Small duct high velocity HP","zAC_Small_duct_high_velocity_HP","zTabHeat_HP"]
["C403.2.3(2) Unitary & Applied Heat Pumps","zTab_HP",null,{"$f":"B$45","v":"ztab_PTAC"},"PTAC","zAC_PTAC","zTabHeat_nonHPplusPTHP"]
["C403.2.3(3) PTAC, PTHP, SPVAC/HP, Room AC","ztab_PTHP",null,"ztab_PTAC","PTHP","zAC_PTHP","zTabHeat_PTHP"]
["C403.2.3(4) Furnaces and Unit Heaters","zTab_Furnaces",null,"ztab_PTAC","SPVAC","zAC_SPVAC","zTabHeat_nonHPplusPTHP"]
["Unrated","ztab_unRatedHeatEq",null,"ztab_PTAC","SPVHP","zAC_SPVHP","zTabHeat_PTHP"]
["None",null,null,"ztab_PTAC","Room AC","zAC_Room_AC","zTabHeat_nonHPplusPTHP"]
[null,null,null,"ztab_PTAC","Room HP","zAC_Room_HP","zTabHeat_PTHP"]
["Unrated Equip",null,null,{"$f":"B$46","v":"zTab_UnratedCoolEq"},"Chilled Water","zAC_Chilled_Water","zTabHeat_nonHP"]
[null,null,null,{"$f":"B$46","v":"zTab_UnratedCoolEq"},"Evaporative","zAC_Evaporative","zTabHeat_nonHP"]
[null,null,null,{"$f":"B47","v":"zTab_None"},"None","zAC_None","zTabHeat_nonHP"]
["Gas",null,null,"Heat only Table range items","heat eq display","heat eq range","x"]
["Oil",null,null,{"$f":"$B$54","v":"zTab_Furnaces"},"Warm air furnace","zHT_fuel"]
["Propane",null,null,{"$f":"$B$54","v":"zTab_Furnaces"},"Warm air duct furnace","zHT_fuel"]
["electric",null,null,{"$f":"$B$54","v":"zTab_Furnaces"},"Warm air unit heater","zHT_fuel"]
[null,null,null,{"$f":"$B$55","v":"ztab_unRatedHeatEq"},"Gas-fired Radiant","zHT_fuel"]
[null,null,null,{"$f":"$B$55","v":"ztab_unRatedHeatEq"},"Electric Strip Heat","zHt_electric"]
[null,null,null,{"$f":"$B$55","v":"ztab_unRatedHeatEq"},"Hot water or steam"]
[null,null,null,{"$f":"$B$55","v":"ztab_unRatedHeatEq"},"Other","zHT_fuel"]
[]
[]
[]
[]
["Cooling Equipment"]
[null,"Equipment Type","Condenser Type","cooling rating condition","heating  rating condition","taable","independent var","cooling ratings","heating ratings"]
["Air conditioner","Air conditioner","Air-cooled, Elec. Res. or No Heat","split/single package same","na","C403.2.3(1) A","Res Ht / Non-res Ht","EER/IEER","none"]
[null,"Air conditioner","Air-cooled, Non-electric heat","split/single package same","na","C403.2.3(1) A","Res Ht / Non-res Ht","EER/IEER","none"]
[null,"Air conditioner","Water-cooled","split/single package same","na","C403.2.3(1) A","Res Ht / Non-res Ht","EER/IEER","none"]
[null,"Air conditioner","Evaporatively-cooled","split/single package same","na","C403.2.3(1) A","Res Ht / Non-res Ht","EER/IEER","none"]
["Thru the wall AC ","Thru the wall AC ","Air-cooled","split/single package same","na","C403.2.3(1) A","None","SEER","none"]
["Condensing unit","Condensing unit","Air-cooled","blank","na","C403.2.3(1) A","None","EER/IEER","none"]
[null,"Condensing unit","Water-cooled","blank","na","C403.2.3(1) A","None","EER/IEER","none"]
[null,"Condensing unit","Evaporatively-cooled","blank","na","C403.2.3(1) A","None","EER/IEER","none"]
["CRAC","CRAC","Air-cooled","blank","na","C403.2.3(1) B","up flow / down flow","SCOP","none"]
[null,"CRAC","Water-cooled","blank","na","C403.2.3(1) B","up flow / down flow","SCOP","none"]
[null,"CRAC","Water-cooled with economizer","blank","na","C403.2.3(1) B","up flow / down flow","SCOP","none"]
[null,"CRAC","Glycol-cooled (40%)","blank","na","C403.2.3(1) B","up flow / down flow","SCOP","none"]
[null,"CRAC","Glycol-cooled (40%) with economizer","blank","na","C403.2.3(1) B","up flow / down flow","SCOP","none"]
["VRF AC","VRF Air Conditioner","Air-cooled, Elec. Res. or No Heat","VRF multi-split system","na","C403.2.3(1) C",null,"EER/IEER","none"]
[null,"VRF Air Conditioner","Air-cooled, Non-electric heat","VRF multi-split system","na","C403.2.3(1) C",null,"EER/IEER","none"]
["VRF HP","VRF Heat pump","Air-cooled, Elec. Res. or No Heat","VRF multi-split system","VRF multi-split system at 17F and 47F","C403.2.3(1) D","could by std and with HR here","EER/IEER","cop at 17F and 47F"]
[null,"VRF Heat pump","Air-cooled, Non-electric heat","VRF multi-split system","VRF multi-split system at 17F and 47F","C403.2.3(1) D","could by std and with HR here","EER/IEER","cop at 17F and 47F"]
[null,"VRF Heat pump","Water source","VRF multi-split systems 86F entering water","VRF multi-split systems 68F entering water","C403.2.3(1) D","could by std and with HR here","EER/IEER","cop"]
[null,"VRF Heat pump","Groundwater source","VRF multi-split systems 59F entering water","VRF multi-split systems 50F entering water","C403.2.3(1) D","could by std and with HR here","EER/IEER","cop"]
[null,"VRF Heat pump","Ground source","VRF multi-split systems 77F entering water","VRF multi-split systems 32F entering water","C403.2.3(1) D","could by std and with HR here","EER/IEER","cop"]
["VRF HP with Heat recovery","VRF HP with heat recovery","Air-cooled","VRF multi-split system","VRF multi-split system at 17F and 47F","C403.2.3(1) D","could by std and with HR here","EER/IEER","cop at 17F and 47F"]
[null,"VRF HP with heat recovery","Water-cooled","VRF multi-split systems 86F entering water","VRF multi-split systems 68F entering water","C403.2.3(1) D","could by std and with HR here","EER/IEER","cop"]
[null,"VRF HP with heat recovery","Groundwater source","VRF multi-split systems 59F entering water","VRF multi-split systems 50F entering water","C403.2.3(1) D","could by std and with HR here","EER/IEER","cop"]
[null,"VRF HP with heat recovery","Ground source","VRF multi-split systems 77F entering water","VRF multi-split systems 32F entering water","C403.2.3(1) D","could by std and with HR here","EER/IEER","cop"]
["Heat pump","Heat pump","Air-cooled, Elec. Res. or No Heat","split/single package same","Split and package the same at 17F and 47F","C403.2.3(2)",null,"EER/IEER","cop at 17F and 47F"]
[null,"Heat pump","Air-cooled, Non-electric heat","split/single package same","Split and package the same at 17F and 47F","C403.2.3(2)",null,"EER/IEER","cop at 17F and 47F"]
[null,"Heat pump","Water source","86F entering water","68F entering water","C403.2.3(2)",null,"EER","cop"]
[null,"Heat pump","Ground water source","59F entering water","50F entering water","C403.2.3(2)",null,"EER","cop"]
[null,"Heat pump","Ground source","77F entering water","32F entering water","C403.2.3(2)",null,"EER","cop"]
[null,"Heat pump","Water source - water to water","86F entering water & 59F entering water","68F entering water & 50F entering water","C403.2.3(2)",null,"EER at 86F & EER at 59F","cop at 68F & 50F"]
[null,"Heat pump","Ground water source - brine to water","77F entering water","32F entering water","C403.2.3(2)",null,"EER","cop"]
["Thru the wall HP","Thru the wall HP","Air-cooled","split/single package same","split/single package same","C403.2.3(2)",null,"SEER","HSPF"]
["Small duct high velocity HP","Small duct high velocity HP","Air-cooled","blank","split only","C403.2.3(2)","None","none","hspf"]
["PTAC","PTAC, New Construction","New Construction","95F db outdoor air","na","C403.2.3(3)","could have new cons & replacement here","EER","none"]
[null,"PTAC, Non-standard size replacement","Replacement","95F db outdoor air","na","C403.2.3(3)","could have new cons & replacement here","EER","none"]
["PTHP","PTHP, New construction","New Construction","95F db outdoor air","blank","C403.2.3(3)","could have new cons & replacement here","EER","COP"]
[null,"PTHP, Non-standard size replacement","Replacement","95F db outdoor air","blank","C403.2.3(3)","could have new cons & replacement here","EER","COP"]
["SPVAC","SPVAC","Air-cooled","95F db / 75F wb outdoor air","blank","C403.2.3(3)",null,"EER","COP"]
["SPVHP","SPVHP","Air-cooled","95F db / 75F wb outdoor air","47F db / 43F wb outdoor air","C403.2.3(3)",null,"EER","COP"]
["Room AC","Room AC, louvered","louvered","blank","na","C403.2.3(3)","or could have louvered non-louvered here","EER","none"]
[null,"Room AC, not louvered","not louvered","blank","na","C403.2.3(3)","or could have louvered non-louvered here","EER","none"]
[null,"Room AC, casement","casement","blank","na","C403.2.3(3)","or could have casement, casement-slider over here","EER","none"]
[null,"Room AC, casement-slide","slide","blank","na","C403.2.3(3)","or could have casement, casement-slider over here","EER","none"]
["Room HP","Room HP, louvered","louvered","blank","na","C403.2.3(3)","or could have louvered non-louvered here","EER","none"]
[null,"Room HP, not louvered","not louvered","blank","na","C403.2.3(3)","or could have louvered non-louvered here","EER","none"]
["Chilled Water","Chilled Water","None","blank","na","no",null,"none","none"]
["Evaporative","Evaporative","None","blank","na","no",null,"none","none"]
["None","None","None"]
[]
[]
["15% SS Exp1"]
["15% SS Exp3"]
["15% CS Exp2"]
["25% CS Exp3"]
["15% CS Exp5a"]
[" 5% CS Exp5b"]
[]
[]
[]
["Yes"]
["Not Required"]

{"sheet":"MECH-EQ BOILER-CHILLER","index":9,"n_rows":75,"n_cols":9,"rows_kept":75,"cut":false,"hidden":false,"merged":[[20,0,20,8],[9,0,9,7],[2,3,2,5],[3,3,3,5],[4,3,4,5],[5,3,5,5],[6,3,6,5],[7,3,7,5]]}
["Boiler and Chiller Equipment Schedule",null,null,null,null,null,null,null,"MECH-EQ"]
[{"$f":"ReadMe!A2","v":"2012 Washington State Energy Code Compliance Forms for Commercial Buildings including R2 & R3 over 3 stories and all R1 "},null,null,null,null,null,null,null,{"$f":"ReadMe!B3","v":"Revised May 2015"}]
["Project Info",null,"Project Address:",{"$f":"IF('MECH-SUM'!D3=\"1 - This address line will copy onto other forms\",\"Fill this line out on MECH-SUM\",IF('MECH-SUM'!D3=0,\"\",'MECH-SUM'!D3))","v":"Fill this line out on MECH-SUM"},null,null,{"$f":"'MECH-SUM'!H3","v":"2015-01-01"}]
[null,null,null,{"$f":"IF('MECH-SUM'!D4=\"1 - This address line will copy onto other forms\",\"Fill this line out on MECH-SUM\",IF('MECH-SUM'!D4=0,\"\",'MECH-SUM'!D4))","v":"Fill this line out on MECH-SUM"},null,null,"For Building Dept. Use"]
[null,null,null,{"$f":"IF('MECH-SUM'!D5=\"1 - This address line will copy onto other forms\",\"Fill this line out on MECH-SUM\",IF('MECH-SUM'!D5=0,\"\",'MECH-SUM'!D5))","v":"Fill this line out on MECH-SUM"}]
[null,null,"Applicant Name:",{"$f":"IF('MECH-SUM'!D6=\"1 - This address line will copy onto other forms\",\"Fill this line out on MECH-SUM\",IF('MECH-SUM'!D6=0,\"\",'MECH-SUM'!D6))","v":"Fill this line out on MECH-SUM"}]
[null,null,"Applicant Address:",{"$f":"IF('MECH-SUM'!D7=\"1 - This address line will copy onto other forms\",\"Fill this line out on MECH-SUM\",IF('MECH-SUM'!D7=0,\"\",'MECH-SUM'!D7))","v":"Fill this line out on MECH-SUM"}]
[null,null,"Applicant Phone:",{"$f":"IF('MECH-SUM'!D8=\"1 - This address line will copy onto other forms\",\"Fill this line out on MECH-SUM\",IF('MECH-SUM'!D8=0,\"\",'MECH-SUM'!D8))","v":"Fill this line out on MECH-SUM"}]
[]
["Boilers"]
["Equip.\nID","Make & Model","Equipment Type","Rated Heating Capacity, Btu/h","Rated Efficiency (Note 1)","Part Load Controls \n(Note 2)","Burner Controls\n(Note 3)","Notes"]
[]
[]
[]
[]
[]
[]
[]
[]
[]
["Chillers"]
["Equip.\nID","Make & Model","Equipment Type","Rated Capacity  (tons) \n(Note 4)","Part Load Controls \n(Note 2)","Non-Standard Calculation or Low Temp Exception \n(Note 5)","Rated Full Load Efficiency \n(Note 6)","Rated IPLV \n(Note 6)","Compliance Path \n(Note 7) "]
[]
[]
[]
[]
[]
[]
[]
[]
[]
[]
["Boiler - Hot water","gas-fired"]
[null,"oil-fired"]
["Boiler - Steam","gas-fired natural draft"]
[null,"gas-fired non-natural draft"]
[null,"oil-fired"]
[]
[]
[]
["Gas-fired hot water boiler"]
["Oil-fired hot water boiler"]
["Gas-fired, natural draft steam boiler"]
["Gas-fired, non-natural draft steam boiler"]
["Oil-fired steam boiler"]
["Electric boiler"]
[]
[]
["Air-cooled"]
["Water cooled, electrically operated, positive displacement"]
["Water cooled, electrically operated, centrifugal"]
["Absorption, air-cooled, single effect"]
["Absorption, water-cooled, single effect"]
["Absorption, double effect, indirect fired"]
["Absorption, double effect, direct fired"]
[]
["Chiller Alternates"]
["C403.2.3.1 Calculation"]
["Centrifugal with design leaving fluid temperature < 36°F"]
["Positive displacement with design leaving fluid temperature < 32°F"]
["Absorption with design leaving fluid temperature < 40°F"]
[]
[]
[]
["Compliance paths"]
["Path A"]
["Path B"]
[]
["Supply water temp. reset"]
["50% reduction in pump flow"]
["NA"]
[]
["Multi-stage"]
["Modulating"]
["NA"]

{"sheet":"MECH-EQ HEAT REJECTION","index":10,"n_rows":43,"n_cols":18,"rows_kept":43,"cut":false,"hidden":false,"merged":[[20,0,20,9],[21,0,22,0],[21,1,22,1],[21,2,22,2],[21,3,21,5],[21,6,21,9],[2,6,2,9],[9,0,9,9],[10,0,11,0],[10,1,11,1],[10,2,11,2],[10,3,10,5],[10,6,10,9],[2,3,2,5],[3,3,3,5],[4,3,4,5],[5,3,5,5],[6,3,6,5],[7,3,7,5]]}
["Heat Rejection Equipment Schedule",null,null,null,null,null,null,null,null,"MECH-EQ"]
[{"$f":"ReadMe!A2","v":"2012 Washington State Energy Code Compliance Forms for Commercial Buildings including R2 & R3 over 3 stories and all R1 "},null,null,null,null,null,null,null,null,{"$f":"ReadMe!B3","v":"Revised May 2015"}]
["Project Info",null,"Project Address:",{"$f":"IF('MECH-SUM'!D3=\"1 - This address line will copy onto other forms\",\"Fill this line out on MECH-SUM\",IF('MECH-SUM'!D3=0,\"\",'MECH-SUM'!D3))","v":"Fill this line out on MECH-SUM"},null,null,{"$f":"'MECH-SUM'!H3","v":"2015-01-01"}]
[null,null,null,{"$f":"IF('MECH-SUM'!D4=\"1 - This address line will copy onto other forms\",\"Fill this line out on MECH-SUM\",IF('MECH-SUM'!D4=0,\"\",'MECH-SUM'!D4))","v":"Fill this line out on MECH-SUM"},null,null,"For Building Dept. Use"]
[null,null,null,{"$f":"IF('MECH-SUM'!D5=\"1 - This address line will copy onto other forms\",\"Fill this line out on MECH-SUM\",IF('MECH-SUM'!D5=0,\"\",'MECH-SUM'!D5))","v":"Fill this line out on MECH-SUM"}]
[null,null,"Applicant Name:",{"$f":"IF('MECH-SUM'!D6=\"1 - This address line will copy onto other forms\",\"Fill this line out on MECH-SUM\",IF('MECH-SUM'!D6=0,\"\",'MECH-SUM'!D6))","v":"Fill this line out on MECH-SUM"}]
[null,null,"Applicant Address:",{"$f":"IF('MECH-SUM'!D7=\"1 - This address line will copy onto other forms\",\"Fill this line out on MECH-SUM\",IF('MECH-SUM'!D7=0,\"\",'MECH-SUM'!D7))","v":"Fill this line out on MECH-SUM"}]
[null,null,"Applicant Phone:",{"$f":"IF('MECH-SUM'!D8=\"1 - This address line will copy onto other forms\",\"Fill this line out on MECH-SUM\",IF('MECH-SUM'!D8=0,\"\",'MECH-SUM'!D8))","v":"Fill this line out on MECH-SUM"}]
[]
["Water Cooled Heat Rejection Equipment"]
["Equip.\nID","Make & Model","Equipment Type","At Design Conditions (Note 1)",null,null,"At CTI Rated Conditions (Note 2)"]
[null,null,null,"Tower Pump GPM","Tower Fan HP","GPM/HP \n(Note 3)","Tower Pump GPM","Tower Fan HP","GPM/HP \n(Note 4)","Complies \n(Note 5)"]
[null,null,null,null,null,{"$f":"IF(E13=\"\",\"\",D13/E13)","v":""},null,null,{"$f":"IF(H13=\"\",\"\",G13/H13)","v":""},{"$f":"IF(I13=\"\",\"\",IF(ISNA(VLOOKUP(C13,$A$37:$B$40,2,FALSE)),\"Col C?\",IF(I13>VLOOKUP(C13,$A$37:$B$40,2,FALSE),\"COMPLIES\",\"DOES NOT COMPLY\")))","v":""}]
[null,null,null,null,null,"",null,null,"",{"$f":"IF(I14=\"\",\"\",IF(ISNA(VLOOKUP(C14,$A$37:$B$40,2,FALSE)),\"Col C?\",IF(I14>VLOOKUP(C14,$A$37:$B$40,2,FALSE),\"COMPLIES\",\"DOES NOT COMPLY\")))","v":""}]
[null,null,null,null,null,"",null,null,"",""]
[null,null,null,null,null,"",null,null,"",""]
[null,null,null,null,null,"",null,null,"",""]
[]
[]
[]
["Air Cooled Heat Rejection Equipment",null,null,null,null,null,null,null,null,null,null,null,null,null,null,null,null,1]
["Equip.\nID","Make & Model","Equipment Type","At Design Conditions (Note 1)",null,null,"At ARI Rated Conditions (Note 6)"]
[null,null,null,"Heat Rejected (Btu/h)","Condenser Fan HP","Btu / h-HP \n(Note 7) ","Heat Rejected (Btu/h)","Condenser Fan HP","Btu / h-HP\n(Note 8)","Complies\n(Note 9)"]
[null,null,null,null,null,{"$f":"IF(E24=\"\",\"\",D24/E24)","v":""},null,null,{"$f":"IF(H24=\"\",\"\",G24/H24)","v":""},{"$f":"IF(I24=\"\",\"\",IF(ISNA(VLOOKUP(C24,$A$43:$B$43,2,FALSE)),\"Col C?\",IF(I24>VLOOKUP(C24,$A$43:$B$43,2,FALSE),\"COMPLIES\",\"DOES NOT COMPLY\")))","v":""}]
[null,null,null,null,null,"",null,null,"",{"$f":"IF(I25=\"\",\"\",IF(ISNA(VLOOKUP(C25,$A$43:$B$43,2,FALSE)),\"Col C?\",IF(I25>VLOOKUP(C25,$A$43:$B$43,2,FALSE),\"COMPLIES\",\"DOES NOT COMPLY\")))","v":""}]
[null,null,null,null,null,"",null,null,"",""]
[null,null,null,null,null,"",null,null,"",""]
[null,null,null,null,null,{"$f":"IF(E28=\"\",\"\",D28/E28)","v":""},null,null,"",""]
[null,null,null,null,null,"",null,null,"",""]
[null,null,null,null,null,"",null,null,"",""]
[null,null,null,null,null,"",null,null,"",""]
[]
[]
[]
[]
[]
["Open circuit, propeller or axial fan",38.200000000000003]
["Open circuit, centrifugal fan",20]
["Closed circuit, propeller or axial fan",14]
["Closed circuit, centrifugal fan",7]
[]
[]
["Air cooled condenser",176000]

{"sheet":"MECH-EQ AIR SYSTEM TERMINALS","index":11,"n_rows":56,"n_cols":6,"rows_kept":56,"cut":false,"hidden":false,"merged":[[8,0,9,0],[8,1,9,1],[8,2,9,2],[8,3,8,4],[2,3,2,4],[3,3,3,4],[4,3,4,4],[5,3,5,4],[6,3,6,4],[7,3,7,4]]}
["Multizone Air System Terminal Schedule",null,null,null,null,"MECH-EQ"]
[{"$f":"ReadMe!A2","v":"2012 Washington State Energy Code Compliance Forms for Commercial Buildings including R2 & R3 over 3 stories and all R1 "}]
["Project Info",null,"Project Address:",{"$f":"IF('MECH-SUM'!D3=\"1 - This address line will copy onto other forms\",\"Fill this line out on MECH-SUM\",IF('MECH-SUM'!D3=0,\"\",'MECH-SUM'!D3))","v":"Fill this line out on MECH-SUM"},null,{"$f":"'MECH-SUM'!H3","v":"2015-01-01"}]
[null,null,null,{"$f":"IF('MECH-SUM'!D4=\"1 - This address line will copy onto other forms\",\"Fill this line out on MECH-SUM\",IF('MECH-SUM'!D4=0,\"\",'MECH-SUM'!D4))","v":"Fill this line out on MECH-SUM"},null,"For Building Dept. Use"]
[null,null,null,{"$f":"IF('MECH-SUM'!D5=\"1 - This address line will copy onto other forms\",\"Fill this line out on MECH-SUM\",IF('MECH-SUM'!D5=0,\"\",'MECH-SUM'!D5))","v":"Fill this line out on MECH-SUM"}]
[null,null,"Applicant Name:",{"$f":"IF('MECH-SUM'!D6=\"1 - This address line will copy onto other forms\",\"Fill this line out on MECH-SUM\",IF('MECH-SUM'!D6=0,\"\",'MECH-SUM'!D6))","v":"Fill this line out on MECH-SUM"}]
[null,null,"Applicant Address:",{"$f":"IF('MECH-SUM'!D7=\"1 - This address line will copy onto other forms\",\"Fill this line out on MECH-SUM\",IF('MECH-SUM'!D7=0,\"\",'MECH-SUM'!D7))","v":"Fill this line out on MECH-SUM"}]
[null,null,"Applicant Phone:",{"$f":"IF('MECH-SUM'!D8=\"1 - This address line will copy onto other forms\",\"Fill this line out on MECH-SUM\",IF('MECH-SUM'!D8=0,\"\",'MECH-SUM'!D8))","v":"Fill this line out on MECH-SUM"}]
["Equip.\nID","Maximum Airflow (cfm)","Maximum Airflow During Reheating or Recooling (cfm)","Ventilation (Note 1)"]
[null,null,null,"IMC Minimum \nAirflow (cfm)","OSHA Mininum \nAirflow (cfm)","Basis of Compliance (Note 2)"]
[]
[]
[]
[]
[]
[]
[]
[]
[]
[]
[]
[]
[]
[]
[]
[]
[]
[]
[]
[]
[]
[]
[]
[]
[]
[]
[]
[]
[]
[]
[]
[]
[]
[]
[]
["No reconditioning at terminal"]
["Reconditioning CFM ≤ 30% Maximum CFM"]
["Reconditioning CFM ≤ 300 CFM"]
["Reconditioning CFM ≤ IMC Ventilation"]
["Reconditioning CFM ≤ OSHA requirements"]
["75% of zone or supply air system reheat or mixing energy is provided by site-recovered or site-solar"]
["Zone with special humidity requirements for process needs"]
[]
["old exception list"]
["75% of zone or supply air system reheat or mixing energy is provided by site-recovered or site-solar"]
["Zone with special humidity requirements for process needs"]

{"sheet":"MECH-EQ narrow","index":12,"n_rows":232,"n_cols":13,"rows_kept":232,"cut":false,"hidden":true,"merged":[[13,2,13,4],[2,6,2,8],[9,2,9,4],[10,2,10,4],[11,2,11,4],[12,2,12,4],[14,2,14,4],[15,2,15,4],[16,2,16,4],[17,1,17,7],[27,1,27,7]]}
["Cooling & Heating Equipment Schedule",null,null,null,null,null,null,null,"MECH-EQ"]
[{"$f":"ReadMe!A2","v":"2012 Washington State Energy Code Compliance Forms for Commercial Buildings including R2 & R3 over 3 stories and all R1 "},null,null,null,null,null,null,null,{"$f":"ReadMe!B3","v":"Revised May 2015"}]
["Project Info",null,"Project Address:",{"$f":"IF('MECH-SUM'!D3=\"1 - This address line will copy onto other forms\",\"Fill this line out on MECH-SUM\",'MECH-SUM'!D3)","v":"Fill this line out on MECH-SUM"},null,null,{"$f":"'MECH-SUM'!H3","v":"2015-01-01"}]
[null,null,null,{"$f":"IF('MECH-SUM'!D4=\"1 - This address line will copy onto other forms\",\"Fill this line out on MECH-SUM\",'MECH-SUM'!D4)","v":"Fill this line out on MECH-SUM"},null,null,"For Building Dept. Use"]
[null,null,null,{"$f":"IF('MECH-SUM'!D5=\"1 - This address line will copy onto other forms\",\"Fill this line out on MECH-SUM\",'MECH-SUM'!D5)","v":"Fill this line out on MECH-SUM"}]
[null,null,"Applicant Name:",{"$f":"IF('MECH-SUM'!D6=\"1 - This address line will copy onto other forms\",\"Fill this line out on MECH-SUM\",'MECH-SUM'!D6)","v":"Fill this line out on MECH-SUM"}]
[null,null,"Applicant Address:",{"$f":"IF('MECH-SUM'!D7=\"1 - This address line will copy onto other forms\",\"Fill this line out on MECH-SUM\",'MECH-SUM'!D7)","v":"Fill this line out on MECH-SUM"}]
[null,null,"Applicant Phone:",{"$f":"IF('MECH-SUM'!D8=\"1 - This address line will copy onto other forms\",\"Fill this line out on MECH-SUM\",'MECH-SUM'!D8)","v":"Fill this line out on MECH-SUM"}]
["Cooling & Heating System Schedule"]
["Equip.\nID","System type, Make & Model","Location of Service",null,null,"Supply CFM","Ventilation CFM","DCV or Occupancy Sensor required? (Indicate type)","Fan Flow Control (Indicate type - Note 5)","Economizer Type (Air, Water, or Exception)","For exception, required % higher efficiency than WSEC Table"]
[]
[]
[]
[]
[]
[]
[]
[null,"Rated Cooling Equipment"]
["Equip.\nID","WSEC Efficiency Table","Equipment Type","Condenser or Sub- Type","Rated Cooling Capacity, Btu/h","Rated Efficiency (Note 1)","Rated Part Load Efficiency \n(Note 2)","Air Economizer  - Yes, or eligible exception","For exception, required % higher equip. efficiency "]
[null,"C403.2.3(1)A Air Conditioners","PTAC","Air-cooled"]
[null,"C403.2.3(1)B Computer Room Units","VRF HP with Heat recovery","Air-cooled"]
[null,"C403.2.3(1)C VRF Air Conditioners","Heat pump","Air-cooled"]
[null,"C403.2.3(1)D VRF Heat Pumps","Thru the wall HP","Air-cooled"]
[null,"C403.2.3(2) Unitary & Applied Heat Pumps","Small duct high velocity HP","Air-cooled"]
[null,"C403.2.3(3) PTAC, PTHP, SPVAC/HP, Room AC","Room HP","Air-cooled"]
[null,"C403.2.3(2) Unitary & Applied Heat Pumps","Air conditioner","Air-cooled"]
[]
[null,"Rated Heating Equipment"]
["Equip.\nID","WSEC Efficiency Table","Equipment Type","Sub-type or  Fuel","Rated Capacity, Btu/h \n(Note 3)","Rated Efficiency (Note 4)","Rated Low Temp Efficiency (COP)"]
[{"$f":"A20","v":0},"C403.2.3(3) PTAC, PTHP, SPVAC/HP, Room AC","Heat pump"]
[0,"C403.2.3(1)A Air Conditioners","VRF HP with heat recovery"]
[0,"C403.2.3(1)C VRF Air Conditioners","Heat pump"]
[0,null,"Thru the wall HP","Air-cooled"]
[0,null,"Small duct high velocity HP","Air-cooled"]
[0,"C403.2.3(1)B Computer Room Units","Room HP","louvered"]
[{"$f":"A27","v":0},null,"Warm air furnace","Electric Resistance"]
[]
["Fan Equipment Schedule"]
["Equip.\nID","Make & Model","Location of Service","\nCFM","Static Pressure","Nameplate horsepower (hp)","Brake horsepower (bhp)","Flow Control     (Indicate type - Note 5)","Motor Efficiency"]
[]
[]
[]
[]
[]
[]
[]
[]
[]
[]
[]
[]
[]
[]
[]
[]
[]
[]
[]
[]
[]
[]
[]
[]
["C403.2.3(1)A Air Conditioners"]
["C403.2.3(1)B Computer Room Units"]
["C403.2.3(1)C VRF Air Conditioners"]
["C403.2.3(1)D VRF Heat Pumps"]
["C403.2.3(2) Unitary & Applied Heat Pumps"]
["C403.2.3(3) PTAC, PTHP, SPVAC/HP, Room AC"]
["C403.2.3(4) Furnaces and Unit Heaters"]
[]
[]
[]
[]
[]
[]
[]
[]
[]
[]
[]
[]
[]
[]
[]
[]
[]
[]
[]
[]
[]
[]
["All Equipment"]
[null,"Equipment Type",null,"Condenser Type","cooling rating condition","heating  rating condition","taable","independent var","cooling ratings","heating ratings"]
["Air conditioner","Air conditioner",null,"Air-cooled","split/single package same","na","C403.2.3(1) A","Res Ht / Non-res Ht","EER/IEER","none"]
[null,"Air conditioner",null,"Water-cooled","split/single package same","na","C403.2.3(1) A","Res Ht / Non-res Ht","EER/IEER","none"]
[null,"Air conditioner",null,"Evaporatively-cooled","split/single package same","na","C403.2.3(1) A","Res Ht / Non-res Ht","EER/IEER","none"]
["Thru-the-wall unit","Thru-the-wall unit",null,"Air-cooled","split/single package same","na","C403.2.3(1) A","None","SEER","none"]
["Condensing unit","Condensing unit",null,"Air-cooled","blank","na","C403.2.3(1) A","None","EER/IEER","none"]
[null,"Condensing unit",null,"Water-cooled","blank","na","C403.2.3(1) A","None","EER/IEER","none"]
[null,"Condensing unit",null,"Evaporatively-cooled","blank","na","C403.2.3(1) A","None","EER/IEER","none"]
["CRAC","CRAC",null,"Air-cooled","blank","na","C403.2.3(1) B","up flow / down flow","SCOP","none"]
[null,"CRAC",null,"Water-cooled","blank","na","C403.2.3(1) B","up flow / down flow","SCOP","none"]
[null,"CRAC",null,"Water-cooled with economizer","blank","na","C403.2.3(1) B","up flow / down flow","SCOP","none"]
[null,"CRAC",null,"Gycol-cooled (40%)","blank","na","C403.2.3(1) B","up flow / down flow","SCOP","none"]
[null,"CRAC",null,"Gycol-cooled (40%) with economizer","blank","na","C403.2.3(1) B","up flow / down flow","SCOP","none"]
["VRF Air Conditioner","VRF Air Conditioner",null,"Air-cooled","VRF multi-split system","na","C403.2.3(1) C",null,"EER/IEER","none"]
["VRF Heat pump","VRF Heat pump",null,"Air-cooled","VRF multi-split system","VRF multi-split system at 17F and 47F","C403.2.3(1) D","could by std and with HR here","EER/IEER","cop at 17F and 47F"]
[null,"VRF Heat pump",null,"Water source","VRF multi-split systems 86F entering water","VRF multi-split systems 68F entering water","C403.2.3(1) D","could by std and with HR here","EER/IEER","cop"]
[null,"VRF Heat pump",null,"Groundwater source","VRF multi-split systems 59F entering water","VRF multi-split systems 50F entering water","C403.2.3(1) D","could by std and with HR here","EER/IEER","cop"]
[null,"VRF Heat pump",null,"Ground source","VRF multi-split systems 77F entering water","VRF multi-split systems 32F entering water","C403.2.3(1) D","could by std and with HR here","EER/IEER","cop"]
["VRF Heat pump with Heat recovery","VRF HP with heat recovery",null,"Air-cooled","VRF multi-split system","VRF multi-split system at 17F and 47F","C403.2.3(1) D","could by std and with HR here","EER/IEER","cop at 17F and 47F"]
[null,"VRF HP with heat recovery",null,"Water-cooled","VRF multi-split systems 86F entering water","VRF multi-split systems 68F entering water","C403.2.3(1) D","could by std and with HR here","EER/IEER","cop"]
[null,"VRF HP with heat recovery",null,"Groundwater source","VRF multi-split systems 59F entering water","VRF multi-split systems 50F entering water","C403.2.3(1) D","could by std and with HR here","EER/IEER","cop"]
[null,"VRF HP with heat recovery",null,"Ground source","VRF multi-split systems 77F entering water","VRF multi-split systems 32F entering water","C403.2.3(1) D","could by std and with HR here","EER/IEER","cop"]
["Heat pump","Heat pump",null,"Air-cooled","split/single package same","Split and package the same at 17F and 47F","C403.2.3(2)",null,"EER/IEER","cop at 17F and 47F"]
[null,"Heat pump",null,"Water source","86F entering water","68F entering water","C403.2.3(2)",null,"EER","cop"]
[null,"Heat pump",null,"Ground water source","59F entering water","50F entering water","C403.2.3(2)",null,"EER","cop"]
[null,"Heat pump",null,"Ground source","77F entering water","32F entering water","C403.2.3(2)",null,"EER","cop"]
[null,"Heat pump",null,"Water source - water to water","86F entering water & 59F entering water","68F entering water & 50F entering water","C403.2.3(2)",null,"EER at 86F & EER at 59F","cop at 68F & 50F"]
[null,"Heat pump",null,"Ground water source - brine to water","77F entering water","32F entering water","C403.2.3(2)",null,"EER","cop"]
["Heat pump, through the wall","Heat pump, through the wall",null,"Air-cooled","split/single package same","split/single package same","C403.2.3(2)",null,"SEER","HSPF"]
["Heat pump, small duct high velocity","Heat pump, small duct high velocity",null,"Air-cooled","blank","split only","C403.2.3(2)","None","none","hspf"]
["PTAC, New Construction","PTAC, New Construction",null,"Air-cooled","95F db outdoor air","na","C403.2.3(3)","could have new cons & replacement here","EER","none"]
["PTAC, Non-standard size replacement","PTAC, Non-standard size replacement",null,"Air-cooled","95F db outdoor air","na","C403.2.3(3)","could have new cons & replacement here","EER","none"]
["PTHP, New construction","PTHP, New construction",null,"Air-cooled","95F db outdoor air","blank","C403.2.3(3)","could have new cons & replacement here","EER","COP"]
["PTHP, Non-standard size replacement","PTHP, Non-standard size replacement",null,"Air-cooled","95F db outdoor air","blank","C403.2.3(3)","could have new cons & replacement here","EER","COP"]
["SPVAC","SPVAC",null,"none","95F db / 75F wb outdoor air","blank","C403.2.3(3)",null,"EER","COP"]
["SPVHP","SPVHP",null,"none","95F db / 75F wb outdoor air","47F db / 43F wb outdoor air","C403.2.3(3)",null,"EER","COP"]
["Room AC, louvered","Room AC, louvered",null,"blank","blank","na","C403.2.3(3)","or could have louvered non-louvered here","EER","none"]
["Room AC, not louvered","Room AC, not louvered",null,"blank","blank","na","C403.2.3(3)","or could have louvered non-louvered here","EER","none"]
["Room HP, louvered","Room HP, louvered",null,"blank","blank","na","C403.2.3(3)","or could have louvered non-louvered here","EER","none"]
["Room HP, not louvered","Room HP, not louvered",null,"blank","blank","na","C403.2.3(3)","or could have louvered non-louvered here","EER","none"]
["Room AC, casement","Room AC, casement",null,"blank","blank","na","C403.2.3(3)","or could have casement, casement-slider over here","EER","none"]
["Room AC, casement-slide","Room AC, casement-slide",null,"blank","blank","na","C403.2.3(3)","or could have casement, casement-slider over here","EER","none"]
["Warm air furnace","Warm air furnace",null,"blank","blank","maximum capacity","C403.2.3(4)","gas / oil fired","none","Ec"]
["Warm air duct furnace","Warm air duct furnace",null,"blank","blank","maximum capacity","C403.2.3(4)","none","none","Ec"]
["Warm air unit heater","Warm air unit heater",null,"blank","blank","maximum capacity","C403.2.3(4)","gas / oil fired","none","Ec"]
[]
[]
[]
["Cooling Equipment"]
[null,"Equipment Type","Condenser Type","cooling rating condition","heating  rating condition","taable","independent var","cooling ratings","heating ratings"]
["Air conditioner","Air conditioner","Air-cooled","split/single package same","na","C403.2.3(1) A","Res Ht / Non-res Ht","EER/IEER","none"]
[null,"Air conditioner","Water-cooled","split/single package same","na","C403.2.3(1) A","Res Ht / Non-res Ht","EER/IEER","none"]
[null,"Air conditioner","Evaporatively-cooled","split/single package same","na","C403.2.3(1) A","Res Ht / Non-res Ht","EER/IEER","none"]
["Thru the wall AC ","Thru the wall AC ","Air-cooled","split/single package same","na","C403.2.3(1) A","None","SEER","none"]
["Condensing unit","Condensing unit","Air-cooled","blank","na","C403.2.3(1) A","None","EER/IEER","none"]
[null,"Condensing unit","Water-cooled","blank","na","C403.2.3(1) A","None","EER/IEER","none"]
[null,"Condensing unit","Evaporatively-cooled","blank","na","C403.2.3(1) A","None","EER/IEER","none"]
["CRAC","CRAC","Air-cooled","blank","na","C403.2.3(1) B","up flow / down flow","SCOP","none"]
[null,"CRAC","Water-cooled","blank","na","C403.2.3(1) B","up flow / down flow","SCOP","none"]
[null,"CRAC","Water-cooled with economizer","blank","na","C403.2.3(1) B","up flow / down flow","SCOP","none"]
[null,"CRAC","Gycol-cooled (40%)","blank","na","C403.2.3(1) B","up flow / down flow","SCOP","none"]
[null,"CRAC","Gycol-cooled (40%) with economizer","blank","na","C403.2.3(1) B","up flow / down flow","SCOP","none"]
["VRF AC","VRF Air Conditioner","Air-cooled","VRF multi-split system","na","C403.2.3(1) C",null,"EER/IEER","none"]
["VRF HP","VRF Heat pump","Air-cooled","VRF multi-split system","VRF multi-split system at 17F and 47F","C403.2.3(1) D","could by std and with HR here","EER/IEER","cop at 17F and 47F"]
[null,"VRF Heat pump","Water source","VRF multi-split systems 86F entering water","VRF multi-split systems 68F entering water","C403.2.3(1) D","could by std and with HR here","EER/IEER","cop"]
[null,"VRF Heat pump","Groundwater source","VRF multi-split systems 59F entering water","VRF multi-split systems 50F entering water","C403.2.3(1) D","could by std and with HR here","EER/IEER","cop"]
[null,"VRF Heat pump","Ground source","VRF multi-split systems 77F entering water","VRF multi-split systems 32F entering water","C403.2.3(1) D","could by std and with HR here","EER/IEER","cop"]
["VRF HP with Heat recovery","VRF HP with heat recovery","Air-cooled","VRF multi-split system","VRF multi-split system at 17F and 47F","C403.2.3(1) D","could by std and with HR here","EER/IEER","cop at 17F and 47F"]
[null,"VRF HP with heat recovery","Water-cooled","VRF multi-split systems 86F entering water","VRF multi-split systems 68F entering water","C403.2.3(1) D","could by std and with HR here","EER/IEER","cop"]
[null,"VRF HP with heat recovery","Groundwater source","VRF multi-split systems 59F entering water","VRF multi-split systems 50F entering water","C403.2.3(1) D","could by std and with HR here","EER/IEER","cop"]
[null,"VRF HP with heat recovery","Ground source","VRF multi-split systems 77F entering water","VRF multi-split systems 32F entering water","C403.2.3(1) D","could by std and with HR here","EER/IEER","cop"]
["Heat pump","Heat pump","Air-cooled","split/single package same","Split and package the same at 17F and 47F","C403.2.3(2)",null,"EER/IEER","cop at 17F and 47F"]
[null,"Heat pump","Water source","86F entering water","68F entering water","C403.2.3(2)",null,"EER","cop"]
[null,"Heat pump","Ground water source","59F entering water","50F entering water","C403.2.3(2)",null,"EER","cop"]
[null,"Heat pump","Ground source","77F entering water","32F entering water","C403.2.3(2)",null,"EER","cop"]
[null,"Heat pump","Water source - water to water","86F entering water & 59F entering water","68F entering water & 50F entering water","C403.2.3(2)",null,"EER at 86F & EER at 59F","cop at 68F & 50F"]
[null,"Heat pump","Ground water source - brine to water","77F entering water","32F entering water","C403.2.3(2)",null,"EER","cop"]
["Thru the wall HP","Thru the wall HP","Air-cooled","split/single package same","split/single package same","C403.2.3(2)",null,"SEER","HSPF"]
["Small duct high velocity HP","Small duct high velocity HP","Air-cooled","blank","split only","C403.2.3(2)","None","none","hspf"]
["PTAC","PTAC, New Construction","New Construction","95F db outdoor air","na","C403.2.3(3)","could have new cons & replacement here","EER","none"]
[null,"PTAC, Non-standard size replacement","Replacement","95F db outdoor air","na","C403.2.3(3)","could have new cons & replacement here","EER","none"]
["PTHP","PTHP, New construction","New Construction","95F db outdoor air","blank","C403.2.3(3)","could have new cons & replacement here","EER","COP"]
[null,"PTHP, Non-standard size replacement","Replacement","95F db outdoor air","blank","C403.2.3(3)","could have new cons & replacement here","EER","COP"]
["SPVAC","SPVAC","Air-cooled","95F db / 75F wb outdoor air","blank","C403.2.3(3)",null,"EER","COP"]
["SPVHP","SPVHP","Air-cooled","95F db / 75F wb outdoor air","47F db / 43F wb outdoor air","C403.2.3(3)",null,"EER","COP"]
["Room AC","Room AC, louvered","louvered","blank","na","C403.2.3(3)","or could have louvered non-louvered here","EER","none"]
[null,"Room AC, not louvered","not louvered","blank","na","C403.2.3(3)","or could have louvered non-louvered here","EER","none"]
[null,"Room AC, casement","casement","blank","na","C403.2.3(3)","or could have casement, casement-slider over here","EER","none"]
[null,"Room AC, casement-slide","slide","blank","na","C403.2.3(3)","or could have casement, casement-slider over here","EER","none"]
["Room HP","Room HP, louvered","louvered","blank","na","C403.2.3(3)","or could have louvered non-louvered here","EER","none"]
[null,"Room HP, not louvered","not louvered","blank","na","C403.2.3(3)","or could have louvered non-louvered here","EER","none"]
["Chilled Water","Chilled Water","none","blank","na","no",null,"none","none"]
[]
[]
[]
[]
[null,null,null,null,"cool eq type","SPVHP",null,null,null,null,null,{"$f":"\"AC\"&F190","v":"ACSPVHP"},{"$f":"SUBSTITUTE(L190,\" \",\"_\")","v":"ACSPVHP"}]
[null,null,"zAC_",null,"condenser or sub type","Air-cooled"]
["cool eq type",null,"zHT_",null,"heat type","SPVHP"]
["Air conditioner",null,"zHTsub",null,"heat fuel or subtype","Air-cooled"]
["Thru the wall AC"]
["Condensing unit"]
["CRAC"]
["VRF AC"]
["VRF HP"]
["VRF HP with Heat recovery"]
["Heat pump",null,"x"]
["Thru the wall HP"]
["Small duct high velocity HP"]
["PTAC"]
["PTHP"]
["SPVAC"]
["SPVHP"]
["Room AC"]
["Room HP"]
["Chilled Water"]
["none",null,"x"]
[null,null,"x"]
[]
[]
[]
[]
[]
[]
[]
["Warm air furnace","Warm air furnace",null,"blank","blank","maximum capacity","C403.2.3(4)","gas / oil fired","none","Ec"]
["Warm air duct furnace","Warm air duct furnace",null,"blank","blank","maximum capacity","C403.2.3(4)","none","none","Ec"]
["Warm air unit heater","Warm air unit heater",null,"blank","blank","maximum capacity","C403.2.3(4)","gas / oil fired","none","Ec"]
["Radiant"]
["Electric Strip Heat"]
["Hot water or steam"]
[]
[]
["Electric Resistance"]
["Heat Pump"]
["Gas-fired"]
["Oil-fired"]
["None"]
["Other"]

{"sheet":"MECH-EQ AIR SYSTEM TERM old","index":13,"n_rows":94,"n_cols":10,"rows_kept":94,"cut":false,"hidden":true,"merged":[[8,0,8,5],[8,6,8,9]]}
["Multizone Air System Terminal Schedule",null,null,null,null,null,null,null,null,"MECH-EQ"]
[{"$f":"ReadMe!A2","v":"2012 Washington State Energy Code Compliance Forms for Commercial Buildings including R2 & R3 over 3 stories and all R1 "},null,null,null,null,null,null,null,null,{"$f":"ReadMe!B3","v":"Revised May 2015"}]
["Project Info",null,"Project Address",{"$f":"IF(#REF!=\"1 - This address line will copy onto other forms\",\"Fill this line out on MECH-SUM\",#REF!)","v":{"$error":"#REF!"}},null,null,null,null,null,{"$f":"#REF!","v":{"$error":"#REF!"}}]
[null,null,null,{"$f":"IF(#REF!=\"1 - This address line will copy onto other forms\",\"Fill this line out on MECH-SUM\",#REF!)","v":{"$error":"#REF!"}},null,null,"For Building Dept. Use"]
[null,null,null,{"$f":"IF(#REF!=\"1 - This address line will copy onto other forms\",\"Fill this line out on MECH-SUM\",#REF!)","v":{"$error":"#REF!"}}]
[null,null,"Applicant Name:",{"$f":"IF(#REF!=\"1 - This address line will copy onto other forms\",\"Fill this line out on MECH-SUM\",#REF!)","v":{"$error":"#REF!"}}]
[null,null,"Applicant Address:",{"$f":"IF(#REF!=\"1 - This address line will copy onto other forms\",\"Fill this line out on MECH-SUM\",#REF!)","v":{"$error":"#REF!"}}]
[null,null,"Applicant Phone:",{"$f":"IF(#REF!=\"1 - This address line will copy onto other forms\",\"Fill this line out on MECH-SUM\",#REF!)","v":{"$error":"#REF!"}}]
["Required Information",null,null,null,null,null,"Basis of Compliance \n(at least one must comply if no exception)"]
["Equip.\nID","Maximum Airflow (cfm)","Maximum Airflow During Reheating or Recooling (cfm)","IMC Ventilation Requirement (cfm)","OSHA Requirement (cfm)","Exception","≤ 30%","≤ 300 cfm","≤ IMC","≤ OSHA"]
[null,1200,400,null,null,null,{"$f":"IF(C11=\"\",\"\",IF(C11<=0.3*B11,\"YES\",\"NO\"))","v":"NO"},{"$f":"IF($C11=\"\",\"\",IF($C11<=300,\"YES\",\"NO\"))","v":"NO"},{"$f":"IF($C11=\"\",\"\",IF($C11<=D11,\"YES\",\"NO\"))","v":"NO"},{"$f":"IF($C11=\"\",\"\",IF($C11<=E11,\"YES\",\"NO\"))","v":"NO"}]
[null,null,null,null,null,null,{"$f":"IF(B12=\"\",\"\",IF(C12<=0.3*B12,\"YES\",\"NO\"))","v":""},{"$f":"IF($B12=\"\",\"\",IF($C12<=300,\"YES\",\"NO\"))","v":""},{"$f":"IF($B12=\"\",\"\",IF($C12<=D12,\"YES\",\"NO\"))","v":""},{"$f":"IF($B12=\"\",\"\",IF($C12<=E12,\"YES\",\"NO\"))","v":""}]
[null,null,null,null,null,null,"","","",""]
[null,null,null,null,null,null,"","","",""]
[null,null,null,null,null,null,"","","",""]
[null,null,null,null,null,null,"","","",""]
[null,null,null,null,null,null,"","","",""]
[null,null,null,null,null,null,"","","",""]
[null,null,null,null,null,null,"","","",""]
[null,null,null,null,null,null,"","","",""]
[null,null,null,null,null,null,"","","",""]
[null,null,null,null,null,null,"","","",""]
[null,null,null,null,null,null,"","","",""]
[null,null,null,null,null,null,"","","",""]
[null,null,null,null,null,null,"","","",""]
[null,null,null,null,null,null,"","","",""]
[null,null,null,null,null,null,"","","",""]
[null,null,null,null,null,null,"","","",""]
[null,null,null,null,null,null,"","","",""]
[null,null,null,null,null,null,"","","",""]
[null,null,null,null,null,null,"","","",""]
[null,null,null,null,null,null,"","","",""]
[null,null,null,null,null,null,"","","",""]
[null,null,null,null,null,null,"","","",""]
[null,null,null,null,null,null,"","","",""]
[null,null,null,null,null,null,"","","",""]
[null,null,null,null,null,null,"","","",""]
[null,null,null,null,null,null,"","","",""]
[null,null,null,null,null,null,"","","",""]
[null,null,null,null,null,null,"","","",""]
[null,null,null,null,null,null,"","","",""]
[null,null,null,null,null,null,"","","",""]
[null,null,null,null,null,null,"","","",""]
[]
[]
[]
[]
[]
[]
[]
[]
[]
[]
[]
[]
[]
[]
[]
[]
[]
[]
[]
[]
[]
[]
[]
[]
[]
[]
[]
[]
[]
[]
[]
[]
[]
[]
[]
[]
[]
[]
[]
[]
[]
[]
[]
[]
[]
["Reconditioning CFM ≤ 30% Maximum CFM"]
["Reconditioning CFM ≤ 300 CFM"]
["Reconditioning CFM ≤ IMC Ventilation"]
["Reconditioning CFM ≤ OSHA requirements"]
["75% of zone or supply air system reheat or mixing energy is provided by site-recovered or site-solar"]
["Zone with special humidity requirements for process needs"]

{"sheet":"ALT-MECH-SYS-SUM","index":14,"n_rows":219,"n_cols":17,"rows_kept":219,"cut":false,"hidden":true,"merged":[[2,5,2,13]]}
["Cooling & Heating Equipment Schedule",null,null,null,null,null,null,null,null,null,null,null,null,"MECH-EQ"]
[{"$f":"ReadMe!A2","v":"2012 Washington State Energy Code Compliance Forms for Commercial Buildings including R2 & R3 over 3 stories and all R1 "},null,null,null,null,null,null,null,null,null,null,null,null,{"$f":"ReadMe!B3","v":"Revised May 2015"}]
["Project Info"]
[]
[]
[]
[]
[]
[]
["Mechanical Systems Summary"]
["Equip ID"," Type of System (Note 1)","Space(s) Served","Compliance Path - Simple or Complex","Heating       Yes/No","Cooling Yes/No","Economizer  Yes, or Eligible Exception (Note 2)","Commissioning  Yes, NA, or Exception\n (Note 3)","Supply CFM","Ventilation CFM","Energy Recovery required?","Serves space requiring OS control and control type","DCV required? (Indicate type)","Flow Control required?     (Indicate type - Note 5)"]
[null,null,null,null,null,null,null,null,null,null,null,null,null,null,null,"Item list"]
[null,null,null,null,null,null,null,null,null,null,null,null,null,null,null,"flow control required?  ","Single space with Sys > 10000 cfm or sum of sys > 10000 cfm,"]
[null,null,null,null,null,null,null,null,null,null,null,null,null,null,null,"DCV ","based upon occupancy and some air flow requirements."]
[null,null,null,null,null,null,null,null,null,null,null,null,null,null,null,"OS","based upon room type - OA damper closed - can apply to whole system or only at zone level"]
[null,null,null,null,null,null,null,null,null,null,null,null,null,null,null,"energy recovery","> 5000 CFM OA in space or system, and systems >70% OA with supply air > 5000CFM "]
[null,null,null,null,null,null,null,null,null,null,null,null,null,null,null,"economizer present or exception","always"]
[]
[null,null,null,null,null,null,null,null,null,null,null,null,null,null,null,"Lists that would identify situations requiring special air system features"]
[null,null,null,null,null,null,null,null,null,null,null,null,null,null,null,"list all rooms with IMC occupancy rates exceeding 25 occs / 1000SF and indicated DCV or exception"]
[null,null,null,null,null,null,null,null,null,null,null,null,null,null,null,"list all rooms served by equipment (single or multiple units) that deliver more than 10000CFM supply in aggregate"]
[null,null,null,null,null,null,null,null,null,null,null,null,null,null,null,"list all rooms served by equipment (single or multiple units) that deliver more than 5000CFM of outdoor air in aggregate"]
[null,null,null,null,null,null,null,null,null,null,null,null,null,null,null,"list all systems with > 5000 CFM Out door area"]
[null,null,null,null,null,null,null,null,null,null,null,null,null,null,null,"list all system with > 70% OA supply air flow rate > 5000CFM"]
[]
[null,null,null,null,null,null,null,null,null,null,null,null,null,null,null,"system oriented list"]
[null,null,null,null,null,null,null,null,null,null,null,null,null,null,null,"OS - system provides outdoor air to one or more zones requiring OS control of outside air dampers or CO2 DCV- indicate DCV or OS control of outside air or system air flow."]
[null,null,null,null,null,null,null,null,null,null,null,null,null,null,null,"DCV - system provides outdoor air to zone > 500SF with an IMC occupancy > 25 occs/1000SF - indicate DCV or exemption?"]
[null,null,null,null,null,null,null,null,null,null,null,null,null,null,null,"sz vav - system serves space with > 10000CFM of supply air from one or more single zone air handlers - SZVAV required"]
[null,null,null,null,null,null,null,null,null,null,null,null,null,null,null,"HR - system > 5000CFM outdoor air - indicate HR or exception"]
[null,null,null,null,null,null,null,null,null,null,null,null,null,null,null,"HR - system > 5000CFM supply air & > 70% OA - indicate HR or exception"]
[null,null,null,null,null,null,null,null,null,null,null,null,null,null,null,"HR - system serves space where multiple systems deliver  > 5000CFM of total outdoor air - indicate HR or exception"]
[]
[]
[]
[]
[]
[]
[]
[]
[]
[]
[]
[]
[]
[]
[]
[]
[]
[]
["C403.2.3(1)A Air Conditioners"]
["C403.2.3(1)B Computer Room Units"]
["C403.2.3(1)C VRF Air Conditioners"]
["C403.2.3(1)D VRF Heat Pumps"]
["C403.2.3(2) Unitary & Applied Heat Pumps"]
["C403.2.3(3) PTAC, PTHP, SPVAC/HP, Room AC"]
["C403.2.3(4) Furnaces and Unit Heaters"]
[]
[]
[]
[]
[]
[]
[]
[]
[]
[]
[]
[]
[]
[]
[]
[]
[]
[]
[]
[]
[]
[]
["All Equipment"]
[null,null,null,null,null,"heating ratings"]
["Air conditioner",null,null,null,null,"none"]
[null,null,null,null,null,"none"]
[null,null,null,null,null,"none"]
["Thru-the-wall unit",null,null,null,null,"none"]
["Condensing unit",null,null,null,null,"none"]
[null,null,null,null,null,"none"]
[null,null,null,null,null,"none"]
["CRAC",null,null,null,null,"none"]
[null,null,null,null,null,"none"]
[null,null,null,null,null,"none"]
[null,null,null,null,null,"none"]
[null,null,null,null,null,"none"]
["VRF Air Conditioner",null,null,null,null,"none"]
["VRF Heat pump",null,null,null,null,"cop at 17F and 47F"]
[null,null,null,null,null,"cop"]
[null,null,null,null,null,"cop"]
[null,null,null,null,null,"cop"]
["VRF Heat pump with Heat recovery",null,null,null,null,"cop at 17F and 47F"]
[null,null,null,null,null,"cop"]
[null,null,null,null,null,"cop"]
[null,null,null,null,null,"cop"]
["Heat pump",null,null,null,null,"cop at 17F and 47F"]
[null,null,null,null,null,"cop"]
[null,null,null,null,null,"cop"]
[null,null,null,null,null,"cop"]
[null,null,null,null,null,"cop at 68F & 50F"]
[null,null,null,null,null,"cop"]
["Heat pump, through the wall",null,null,null,null,"HSPF"]
["Heat pump, small duct high velocity",null,null,null,null,"hspf"]
["PTAC, New Construction",null,null,null,null,"none"]
["PTAC, Non-standard size replacement",null,null,null,null,"none"]
["PTHP, New construction",null,null,null,null,"COP"]
["PTHP, Non-standard size replacement",null,null,null,null,"COP"]
["SPVAC",null,null,null,null,"COP"]
["SPVHP",null,null,null,null,"COP"]
["Room AC, louvered",null,null,null,null,"none"]
["Room AC, not louvered",null,null,null,null,"none"]
["Room HP, louvered",null,null,null,null,"none"]
["Room HP, not louvered",null,null,null,null,"none"]
["Room AC, casement",null,null,null,null,"none"]
["Room AC, casement-slide",null,null,null,null,"none"]
["Warm air furnace",null,null,null,null,"Ec"]
["Warm air duct furnace",null,null,null,null,"Ec"]
["Warm air unit heater",null,null,null,null,"Ec"]
[]
[]
[]
["Cooling Equipment"]
[null,null,"Condenser Type"]
["Air conditioner",null,"Air-cooled"]
[null,null,"Water-cooled"]
[null,null,"Evaporatively-cooled"]
["Thru the wall AC ",null,"Air-cooled"]
["Condensing unit",null,"Air-cooled"]
[null,null,"Water-cooled"]
[null,null,"Evaporatively-cooled"]
["CRAC",null,"Air-cooled"]
[null,null,"Water-cooled"]
[null,null,"Water-cooled with economizer"]
[null,null,"Gycol-cooled (40%)"]
[null,null,"Gycol-cooled (40%) with economizer"]
["VRF AC",null,"Air-cooled"]
["VRF HP",null,"Air-cooled"]
[null,null,"Water source"]
[null,null,"Groundwater source"]
[null,null,"Ground source"]
["VRF HP with Heat recovery",null,"Air-cooled"]
[null,null,"Water-cooled"]
[null,null,"Groundwater source"]
[null,null,"Ground source"]
["Heat pump",null,"Air-cooled"]
[null,null,"Water source"]
[null,null,"Ground water source"]
[null,null,"Ground source"]
[null,null,"Water source - water to water"]
[null,null,"Ground water source - brine to water"]
["Thru the wall HP",null,"Air-cooled"]
["Small duct high velocity HP",null,"Air-cooled"]
["PTAC",null,"New Construction"]
[null,null,"Replacement"]
["PTHP",null,"New Construction"]
[null,null,"Replacement"]
["SPVAC",null,"Air-cooled"]
["SPVHP",null,"Air-cooled"]
["Room AC",null,"louvered"]
[null,null,"not louvered"]
[null,null,"casement"]
[null,null,"slide"]
["Room HP",null,"louvered"]
[null,null,"not louvered"]
["Chilled Water",null,"none"]
[]
[]
[]
[]
[null,null,null,null,null,null,null,null,null,null,null,null,null,{"$f":"\"AC\"&#REF!","v":{"$error":"#REF!"}}]
[null,null,"zAC_"]
["cool eq type",null,"zHT_"]
["Air conditioner",null,"zHTsub"]
["Thru the wall AC"]
["Condensing unit"]
["CRAC"]
["VRF AC"]
["VRF HP"]
["VRF HP with Heat recovery"]
["Heat pump",null,"x"]
["Thru the wall HP"]
["Small duct high velocity HP"]
["PTAC"]
["PTHP"]
["SPVAC"]
["SPVHP"]
["Room AC"]
["Room HP"]
["Chilled Water"]
["none",null,"x"]
[null,null,"x"]
[]
[]
[]
[]
[]
[]
[]
["Warm air furnace",null,null,null,null,"Ec"]
["Warm air duct furnace",null,null,null,null,"Ec"]
["Warm air unit heater",null,null,null,null,"Ec"]
["Radiant"]
["Electric Strip Heat"]
["Hot water or steam"]
[]
[]
["Electric Resistance"]
["Heat Pump"]
["Gas-fired"]
["Oil-fired"]
["None"]
["Other"]